Workbook

Sheet התחלה
B1: אודות תבנית זו
B2: השתמש בחוברת עבודה זו של תקציב הוצאות עסקיות זו כדי לעקוב אחר ההוצאות המתוכננות, ההוצאות בפועל והשונות.
B3: מלא את שם החברה והוסף את סמל החברה.
B4: הזן פרטים בטבלאות בגליון העבודה 'הוצאות מתוכננות' ובגליון העבודה 'הוצאות בפועל'.
B5: הטבלאות מתעדכנות באופן אוטומטי בגליון העבודה 'שונות הוצאות'. התרשימים מתעדכנים באופן אוטומטי בגליון העבודה 'ניתוח הוצאות'
B6: הערה:
B7: הוראות נוספות סופקו בעמודה A בכל גליון עבודה. טקסט זה הוסתר במכוון. כדי להסיר את הטקסט, בחר את עמודה A ולאחר מכן הקש DELETE. כדי לבטל את הסתרת הטקסט, בחר את עמודה A ולאחר מכן שנה את צבע הגופן.
B8: לקבלת מידע נוסף על הטבלאות, הקש SHIFT ולאחר מכן F10 בתוך טבלה, בחר את האפשרות 'טבלה' ולאחר מכן בחר 'טקסט חלופי'

Sheet הוצאות מתוכננות
B2: שם החברה | K2: פירוט ההוצאות המשוערות
K3: התאים המוצללים כוללים חישובים.
B4: הוצאות מתוכננות | C4: ינו | D4: פבר | E4: מרץ | F4: אפר | G4: מאי | H4: יונ | I4: יול | J4: אוג | K4: ספט | L4: אוק | M4: נוב | N4: דצמ | O4: שנה
B5: עלויות עובדים | C5: ינו | D5: פבר | E5: מרץ | F5: אפר | G5: מאי | H5: יונ | I5: יול | J5: אוג | K5: ספט | L5: אוק | M5: נוב | N5: דצמ | O5: שנה
B6: שכר | C6: ₪ 85,000.00 | D6: ₪ 85,000.00 | E6: ₪ 85,000.00 | F6: ₪ 87,500.00 | G6: ₪ 87,500.00 | H6: ₪ 87,500.00 | I6: ₪ 87,500.00 | J6: ₪ 92,400.00 | K6: ₪ 92,400.00 | L6: ₪ 92,400.00 | M6: ₪ 92,400.00 | N6: ₪ 92,400.00 | O6: =SUM(C6:N6) -> ₪ 1,067,000.00
B7: הטבות | C7: =C6*0.27 -> ₪ 22,950.00 | D7: ₪ 22,950.00 | E7: ₪ 22,950.00 | F7: ₪ 23,625.00 | G7: ₪ 23,625.00 | H7: ₪ 23,625.00 | I7: ₪ 23,625.00 | J7: ₪ 24,948.00 | K7: ₪ 24,948.00 | L7: ₪ 24,948.00 | M7: ₪ 24,948.00 | N7: ₪ 24,948.00 | O7: =SUM(C7:N7) -> ₪ 288,090.00
B8: סכום ביניים | C8: =SUBTOTAL(109,EmployeePlan[ינו]) -> ₪ 107,950.00 | D8: =SUBTOTAL(109,EmployeePlan[פבר]) -> ₪ 107,950.00 | E8: =SUBTOTAL(109,EmployeePlan[מרץ]) -> ₪ 107,950.00 | F8: =SUBTOTAL(109,EmployeePlan[אפר]) -> ₪ 111,125.00 | G8: =SUBTOTAL(109,EmployeePlan[מאי]) -> ₪ 111,125.00 | H8: =SUBTOTAL(109,EmployeePlan[יונ]) -> ₪ 111,125.00 | I8: =SUBTOTAL(109,EmployeePlan[יול]) -> ₪ 111,125.00 | J8: =SUBTOTAL(109,EmployeePlan[אוג]) -> ₪ 117,348.00 | K8: =SUBTOTAL(109,EmployeePlan[ספט]) -> ₪ 117,348.00 | L8: =SUBTOTAL(109,EmployeePlan[אוק]) -> ₪ 117,348.00 | M8: =SUBTOTAL(109,EmployeePlan[נוב]) -> ₪ 117,348.00 | N8: =SUBTOTAL(109,EmployeePlan[דצמ]) -> ₪ 117,348.00 | O8: =SUBTOTAL(109,EmployeePlan[שנה]) -> ₪ 1,355,090.00
B10: עלויות משרדיות | C10: ינו | D10: פבר | E10: מרץ | F10: אפר | G10: מאי | H10: יונ | I10: יול | J10: אוג | K10: ספט | L10: אוק | M10: נוב | N10: דצמ | O10: שנה
B11: שכ"ד למשרד | C11: ₪ 9,800.00 | D11: ₪ 9,800.00 | E11: ₪ 9,800.00 | F11: ₪ 9,800.00 | G11: ₪ 9,800.00 | H11: ₪ 9,800.00 | I11: ₪ 9,800.00 | J11: ₪ 9,800.00 | K11: ₪ 9,800.00 | L11: ₪ 9,800.00 | M11: ₪ 9,800.00 | N11: ₪ 9,800.00 | O11: =SUM(C11:N11) -> ₪ 117,600.00
B12: גז | D12: ₪ 400.00 | E12: ₪ 400.00 | F12: ₪ 100.00 | G12: ₪ 100.00 | H12: ₪ 100.00 | I12: ₪ 100.00 | J12: ₪ 100.00 | K12: ₪ 100.00 | L12: ₪ 100.00 | M12: ₪ 400.00 | N12: ₪ 400.00 | O12: ₪ 2,300.00
B13: חשמל | C13: ₪ 300.00 | D13: ₪ 300.00 | E13: ₪ 300.00 | F13: ₪ 300.00 | G13: ₪ 300.00 | H13: ₪ 300.00 | I13: ₪ 300.00 | J13: ₪ 300.00 | K13: ₪ 300.00 | L13: ₪ 300.00 | M13: ₪ 300.00 | N13: ₪ 300.00 | O13: ₪ 3,600.00
B14: מים | C14: ₪ 40.00 | D14: ₪ 40.00 | E14: ₪ 40.00 | F14: ₪ 40.00 | G14: ₪ 40.00 | H14: ₪ 40.00 | I14: ₪ 40.00 | J14: ₪ 40.00 | K14: ₪ 40.00 | L14: ₪ 40.00 | M14: ₪ 40.00 | N14: ₪ 40.00 | O14: ₪ 480.00
B15: טלפון | C15: ₪ 250.00 | D15: ₪ 250.00 | E15: ₪ 250.00 | F15: ₪ 250.00 | G15: ₪ 250.00 | H15: ₪ 250.00 | I15: ₪ 250.00 | J15: ₪ 250.00 | K15: ₪ 250.00 | L15: ₪ 250.00 | M15: ₪ 250.00 | N15: ₪ 250.00 | O15: ₪ 3,000.00
B16: גישה לאינטרנט | C16: ₪ 180.00 | D16: ₪ 180.00 | E16: ₪ 180.00 | F16: ₪ 180.00 | G16: ₪ 180.00 | H16: ₪ 180.00 | I16: ₪ 180.00 | J16: ₪ 180.00 | K16: ₪ 180.00 | L16: ₪ 180.00 | M16: ₪ 180.00 | N16: ₪ 180.00 | O16: ₪ 2,160.00
B17: ציוד משרדי | C17: ₪ 200.00 | D17: ₪ 200.00 | E17: ₪ 200.00 | F17: ₪ 200.00 | G17: ₪ 200.00 | H17: ₪ 200.00 | I17: ₪ 200.00 | J17: ₪ 200.00 | K17: ₪ 200.00 | L17: ₪ 200.00 | M17: ₪ 200.00 | N17: ₪ 200.00 | O17: ₪ 2,400.00
B18: אבטחה | C18: ₪ 600.00 | D18: ₪ 600.00 | E18: ₪ 600.00 | F18: ₪ 600.00 | G18: ₪ 600.00 | H18: ₪ 600.00 | I18: ₪ 600.00 | J18: ₪ 600.00 | K18: ₪ 600.00 | L18: ₪ 600.00 | M18: ₪ 600.00 | N18: ₪ 600.00 | O18: ₪ 7,200.00
B19: סכום ביניים | C19: =SUBTOTAL(109,OfficePlan[ינו]) -> ₪ 11,370.00 | D19: =SUBTOTAL(109,OfficePlan[פבר]) -> ₪ 11,770.00 | E19: =SUBTOTAL(109,OfficePlan[מרץ]) -> ₪ 11,770.00 | F19: =SUBTOTAL(109,OfficePlan[אפר]) -> ₪ 11,470.00 | G19: =SUBTOTAL(109,OfficePlan[מאי]) -> ₪ 11,470.00 | H19: =SUBTOTAL(109,OfficePlan[יונ]) -> ₪ 11,470.00 | I19: =SUBTOTAL(109,OfficePlan[יול]) -> ₪ 11,470.00 | J19: =SUBTOTAL(109,OfficePlan[אוג]) -> ₪ 11,470.00 | K19: =SUBTOTAL(109,OfficePlan[ספט]) -> ₪ 11,470.00 | L19: =SUBTOTAL(109,OfficePlan[אוק]) -> ₪ 11,470.00 | M19: =SUBTOTAL(109,OfficePlan[נוב]) -> ₪ 11,770.00 | N19: =SUBTOTAL(109,OfficePlan[דצמ]) -> ₪ 11,770.00 | O19: =SUBTOTAL(109,OfficePlan[שנה]) -> ₪ 138,740.00
B21: עלויות שיווק | C21: ינו | D21: פבר | E21: מרץ | F21: אפר | G21: מאי | H21: יונ | I21: יול | J21: אוג | K21: ספט | L21: אוק | M21: נוב | N21: דצמ | O21: שנה
B22: אירוח אתר אינטרנט | C22: ₪ 500.00 | D22: ₪ 500.00 | E22: ₪ 500.00 | F22: ₪ 500.00 | G22: ₪ 500.00 | H22: ₪ 500.00 | I22: ₪ 500.00 | J22: ₪ 500.00 | K22: ₪ 500.00 | L22: ₪ 500.00 | M22: ₪ 500.00 | N22: ₪ 500.00 | O22: =SUM(C22:N22) -> ₪ 6,000.00
B23: עדכוני אתר אינטרנט | C23: ₪ 200.00 | D23: ₪ 200.00 | E23: ₪ 200.00 | F23: ₪ 200.00 | G23: ₪ 200.00 | H23: ₪ 1,000.00 | I23: ₪ 200.00 | J23: ₪ 200.00 | K23: ₪ 200.00 | L23: ₪ 200.00 | M23: ₪ 200.00 | N23: ₪ 1,000.00 | O23: ₪ 4,000.00
B24: הכנת חומרי שיווק | C24: ₪ 5,000.00 | D24: ₪ 0.00 | E24: ₪ 0.00 | F24: ₪ 5,000.00 | G24: ₪ 0.00 | H24: ₪ 0.00 | I24: ₪ 5,000.00 | J24: ₪ 0.00 | K24: ₪ 0.00 | L24: ₪ 5,000.00 | M24: ₪ 0.00 | N24: ₪ 0.00 | O24: ₪ 20,000.00
B25: הדפסת חומרי שיווק | C25: ₪ 200.00 | D25: ₪ 200.00 | E25: ₪ 200.00 | F25: ₪ 200.00 | G25: ₪ 200.00 | H25: ₪ 200.00 | I25: ₪ 200.00 | J25: ₪ 200.00 | K25: ₪ 200.00 | L25: ₪ 200.00 | M25: ₪ 200.00 | N25: ₪ 200.00 | O25: ₪ 2,400.00
B26: אירועים שיווקיים | C26: ₪ 2,000.00 | D26: ₪ 2,000.00 | E26: ₪ 2,000.00 | F26: ₪ 5,000.00 | G26: ₪ 2,000.00 | H26: ₪ 2,000.00 | I26: ₪ 2,000.00 | J26: ₪ 5,000.00 | K26: ₪ 2,000.00 | L26: ₪ 2,000.00 | M26: ₪ 2,000.00 | N26: ₪ 5,000.00 | O26: ₪ 33,000.00
B27: הוצאות שונות | C27: ₪ 200.00 | D27: ₪ 200.00 | E27: ₪ 200.00 | F27: ₪ 200.00 | G27: ₪ 200.00 | H27: ₪ 200.00 | I27: ₪ 200.00 | J27: ₪ 200.00 | K27: ₪ 200.00 | L27: ₪ 200.00 | M27: ₪ 200.00 | N27: ₪ 200.00 | O27: ₪ 2,400.00
B28: סכום ביניים | C28: =SUBTOTAL(109,MarketingPlan[ינו]) -> ₪ 8,100.00 | D28: =SUBTOTAL(109,MarketingPlan[פבר]) -> ₪ 3,100.00 | E28: =SUBTOTAL(109,MarketingPlan[מרץ]) -> ₪ 3,100.00 | F28: =SUBTOTAL(109,MarketingPlan[אפר]) -> ₪ 11,100.00 | G28: =SUBTOTAL(109,MarketingPlan[מאי]) -> ₪ 3,100.00 | H28: =SUBTOTAL(109,MarketingPlan[יונ]) -> ₪ 3,900.00 | I28: =SUBTOTAL(109,MarketingPlan[יול]) -> ₪ 8,100.00 | J28: =SUBTOTAL(109,MarketingPlan[אוג]) -> ₪ 6,100.00 | K28: =SUBTOTAL(109,MarketingPlan[ספט]) -> ₪ 3,100.00 | L28: =SUBTOTAL(109,MarketingPlan[אוק]) -> ₪ 8,100.00 | M28: =SUBTOTAL(109,MarketingPlan[נוב]) -> ₪ 3,100.00 | N28: =SUBTOTAL(109,MarketingPlan[דצמ]) -> ₪ 6,900.00 | O28: =SUBTOTAL(109,MarketingPlan[שנה]) -> ₪ 67,800.00
B30: הדרכה/נסיעה | C30: ינו | D30: פבר | E30: מרץ | F30: אפר | G30: מאי | H30: יונ | I30: יול | J30: אוג | K30: ספט | L30: אוק | M30: נוב | N30: דצמ | O30: שנה
B31: קורסי הדרכה | C31: ₪ 2,000.00 | D31: ₪ 2,000.00 | E31: ₪ 2,000.00 | F31: ₪ 2,000.00 | G31: ₪ 2,000.00 | H31: ₪ 2,000.00 | I31: ₪ 2,000.00 | J31: ₪ 2,000.00 | K31: ₪ 2,000.00 | L31: ₪ 2,000.00 | M31: ₪ 2,000.00 | N31: ₪ 2,000.00 | O31: =SUM(C31:N31) -> ₪ 24,000.00
B32: עלויות נסיעה הקשורות להדרכה | C32: ₪ 2,000.00 | D32: ₪ 2,000.00 | E32: ₪ 2,000.00 | F32: ₪ 2,000.00 | G32: ₪ 2,000.00 | H32: ₪ 2,000.00 | I32: ₪ 2,000.00 | J32: ₪ 2,000.00 | K32: ₪ 2,000.00 | L32: ₪ 2,000.00 | M32: ₪ 2,000.00 | N32: ₪ 2,000.00 | O32: =SUM(C32:N32) -> ₪ 24,000.00
B33: סכום ביניים | C33: =SUBTOTAL(109,TrainingAndTravelPlan[ינו]) -> ₪ 4,000.00 | D33: =SUBTOTAL(109,TrainingAndTravelPlan[פבר]) -> ₪ 4,000.00 | E33: =SUBTOTAL(109,TrainingAndTravelPlan[מרץ]) -> ₪ 4,000.00 | F33: =SUBTOTAL(109,TrainingAndTravelPlan[אפר]) -> ₪ 4,000.00 | G33: =SUBTOTAL(109,TrainingAndTravelPlan[מאי]) -> ₪ 4,000.00 | H33: =SUBTOTAL(109,TrainingAndTravelPlan[יונ]) -> ₪ 4,000.00 | I33: =SUBTOTAL(109,TrainingAndTravelPlan[יול]) -> ₪ 4,000.00 | J33: =SUBTOTAL(109,TrainingAndTravelPlan[אוג]) -> ₪ 4,000.00 | K33: =SUBTOTAL(109,TrainingAndTravelPlan[ספט]) -> ₪ 4,000.00 | L33: =SUBTOTAL(109,TrainingAndTravelPlan[אוק]) -> ₪ 4,000.00 | M33: =SUBTOTAL(109,TrainingAndTravelPlan[נוב]) -> ₪ 4,000.00 | N33: =SUBTOTAL(109,TrainingAndTravelPlan[דצמ]) -> ₪ 4,000.00 | O33: =SUBTOTAL(109,TrainingAndTravelPlan[שנה]) -> ₪ 48,000.00
B35: סכומים כוללים | C35: ינו | D35: פבר | E35: מרץ | F35: אפר | G35: מאי | H35: יונ | I35: יול | J35: אוג | K35: ספט | L35: אוק | M35: נוב | N35: דצמ | O35: שנה
B36: הוצאות מתוכננות חודשיות | C36: =TrainingAndTravelPlan[[#Totals],[ינו]]+MarketingPlan[[#Totals],[ינו]]+OfficePlan[[#Totals],[ינו]]+EmployeePlan[[#Totals],[ינו]] -> ₪ 131,420.00 | D36: =TrainingAndTravelPlan[[#Totals],[פבר]]+MarketingPlan[[#Totals],[פבר]]+OfficePlan[[#Totals],[פבר]]+EmployeePlan[[#Totals],[פבר]] -> ₪ 126,820.00 | E36: =TrainingAndTravelPlan[[#Totals],[מרץ]]+MarketingPlan[[#Totals],[מרץ]]+OfficePlan[[#Totals],[מרץ]]+EmployeePlan[[#Totals],[מרץ]] -> ₪ 126,820.00 | F36: =TrainingAndTravelPlan[[#Totals],[אפר]]+MarketingPlan[[#Totals],[אפר]]+OfficePlan[[#Totals],[אפר]]+EmployeePlan[[#Totals],[אפר]] -> ₪ 137,695.00 | G36: =TrainingAndTravelPlan[[#Totals],[מאי]]+MarketingPlan[[#Totals],[מאי]]+OfficePlan[[#Totals],[מאי]]+EmployeePlan[[#Totals],[מאי]] -> ₪ 129,695.00 | H36: =TrainingAndTravelPlan[[#Totals],[יונ]]+MarketingPlan[[#Totals],[יונ]]+OfficePlan[[#Totals],[יונ]]+EmployeePlan[[#Totals],[יונ]] -> ₪ 130,495.00 | I36: =TrainingAndTravelPlan[[#Totals],[יול]]+MarketingPlan[[#Totals],[יול]]+OfficePlan[[#Totals],[יול]]+EmployeePlan[[#Totals],[יול]] -> ₪ 134,695.00 | J36: =TrainingAndTravelPlan[[#Totals],[אוג]]+MarketingPlan[[#Totals],[אוג]]+OfficePlan[[#Totals],[אוג]]+EmployeePlan[[#Totals],[אוג]] -> ₪ 138,918.00 | K36: =TrainingAndTravelPlan[[#Totals],[ספט]]+MarketingPlan[[#Totals],[ספט]]+OfficePlan[[#Totals],[ספט]]+EmployeePlan[[#Totals],[ספט]] -> ₪ 135,918.00 | L36: =TrainingAndTravelPlan[[#Totals],[אוק]]+MarketingPlan[[#Totals],[אוק]]+OfficePlan[[#Totals],[אוק]]+EmployeePlan[[#Totals],[אוק]] -> ₪ 140,918.00 | M36: =TrainingAndTravelPlan[[#Totals],[נוב]]+MarketingPlan[[#Totals],[נוב]]+OfficePlan[[#Totals],[נוב]]+EmployeePlan[[#Totals],[נוב]] -> ₪ 136,218.00 | N36: =TrainingAndTravelPlan[[#Totals],[דצמ]]+MarketingPlan[[#Totals],[דצמ]]+OfficePlan[[#Totals],[דצמ]]+EmployeePlan[[#Totals],[דצמ]] -> ₪ 140,018.00 | O36: =TrainingAndTravelPlan[[#Totals],[שנה]]+MarketingPlan[[#Totals],[שנה]]+OfficePlan[[#Totals],[שנה]]+EmployeePlan[[#Totals],[שנה]] -> ₪ 1,609,630.00
B37: הוצאות מתוכננות כוללות | C37: =SUM($C$36:C36) -> ₪ 131,420.00 | D37: =SUM($C$36:D36) -> ₪ 258,240.00 | E37: =SUM($C$36:E36) -> ₪ 385,060.00 | F37: =SUM($C$36:F36) -> ₪ 522,755.00 | G37: =SUM($C$36:G36) -> ₪ 652,450.00 | H37: =SUM($C$36:H36) -> ₪ 782,945.00 | I37: =SUM($C$36:I36) -> ₪ 917,640.00 | J37: =SUM($C$36:J36) -> ₪ 1,056,558.00 | K37: =SUM($C$36:K36) -> ₪ 1,192,476.00 | L37: =SUM($C$36:L36) -> ₪ 1,333,394.00 | M37: =SUM($C$36:M36) -> ₪ 1,469,612.00 | N37: =SUM($C$36:N36) -> ₪ 1,609,630.00

Sheet הוצאות בפועל
B2: ='הוצאות מתוכננות'!B2:D3 -> שם החברה | K2: =worksheet_title -> פירוט ההוצאות המשוערות
K3: התאים המוצללים כוללים חישובים.
B4: הוצאות בפועל | C4: ינו | D4: פבר | E4: מרץ | F4: אפר | G4: מאי | H4: יונ | I4: יול | J4: אוג | K4: ספט | L4: אוק | M4: נוב | N4: דצמ | O4: שנה
B5: עלויות עובדים | C5: ינו | D5: פבר | E5: מרץ | F5: אפר | G5: מאי | H5: יונ | I5: יול | J5: אוג | K5: ספט | L5: אוק | M5: נוב | N5: דצמ | O5: שנה
B6: שכר | C6: ₪ 85,000.00 | D6: ₪ 85,000.00 | E6: ₪ 85,000.00 | F6: ₪ 88,000.00 | G6: ₪ 88,000.00 | H6: ₪ 88,000.00 | O6: =SUM(C6:N6) -> ₪ 519,000.00
B7: הטבות | C7: =C6*0.27 -> ₪ 22,950.00 | D7: ₪ 22,950.00 | E7: ₪ 22,950.00 | F7: ₪ 23,760.00 | G7: ₪ 23,760.00 | H7: ₪ 23,760.00 | I7: ₪ 0.00 | J7: ₪ 0.00 | K7: ₪ 0.00 | L7: ₪ 0.00 | M7: ₪ 0.00 | N7: ₪ 0.00 | O7: =SUM(C7:N7) -> ₪ 140,130.00
B8: סכום ביניים | C8: =SUBTOTAL(109,EmployeeActual[ינו]) -> ₪ 107,950.00 | D8: =SUBTOTAL(109,EmployeeActual[פבר]) -> ₪ 107,950.00 | E8: =SUBTOTAL(109,EmployeeActual[מרץ]) -> ₪ 107,950.00 | F8: =SUBTOTAL(109,EmployeeActual[אפר]) -> ₪ 111,760.00 | G8: =SUBTOTAL(109,EmployeeActual[מאי]) -> ₪ 111,760.00 | H8: =SUBTOTAL(109,EmployeeActual[יונ]) -> ₪ 111,760.00 | I8: =SUBTOTAL(109,EmployeeActual[יול]) -> ₪ 0.00 | J8: =SUBTOTAL(109,EmployeeActual[אוג]) -> ₪ 0.00 | K8: =SUBTOTAL(109,EmployeeActual[ספט]) -> ₪ 0.00 | L8: =SUBTOTAL(109,EmployeeActual[אוק]) -> ₪ 0.00 | M8: =SUBTOTAL(109,EmployeeActual[נוב]) -> ₪ 0.00 | N8: =SUBTOTAL(109,EmployeeActual[דצמ]) -> ₪ 0.00 | O8: =SUBTOTAL(109,EmployeeActual[שנה]) -> ₪ 659,130.00
B10: עלויות משרדיות | C10: ינו | D10: פבר | E10: מרץ | F10: אפר | G10: מאי | H10: יונ | I10: יול | J10: אוג | K10: ספט | L10: אוק | M10: נוב | N10: דצמ | O10: שנה
B11: שכ"ד למשרד | C11: ₪ 9,800.00 | D11: ₪ 9,800.00 | E11: ₪ 9,800.00 | F11: ₪ 9,800.00 | G11: ₪ 9,800.00 | H11: ₪ 9,800.00 | O11: =SUM(C11:N11) -> ₪ 58,800.00
B12: גז | C12: ₪ 4.00 | D12: ₪ 430.00 | E12: ₪ 385.00 | F12: ₪ 230.00 | G12: ₪ 87.00 | H12: ₪ 88.00 | O12: ₪ 1,224.00
B13: חשמל | C13: ₪ 288.00 | D13: ₪ 278.00 | E13: ₪ 268.00 | F13: ₪ 299.00 | G13: ₪ 306.00 | H13: ₪ 290.00 | O13: ₪ 1,729.00
B14: מים | C14: ₪ 35.00 | D14: ₪ 33.00 | E14: ₪ 34.00 | F14: ₪ 36.00 | G14: ₪ 34.00 | H14: ₪ 36.00 | O14: ₪ 208.00
B15: טלפון | C15: ₪ 224.00 | D15: ₪ 235.00 | E15: ₪ 265.00 | F15: ₪ 245.00 | G15: ₪ 245.00 | H15: ₪ 220.00 | O15: ₪ 1,434.00
B16: גישה לאינטרנט | C16: ₪ 180.00 | D16: ₪ 180.00 | E16: ₪ 180.00 | F16: ₪ 180.00 | G16: ₪ 180.00 | H16: ₪ 180.00 | O16: ₪ 1,080.00
B17: ציוד משרדי | C17: ₪ 256.00 | D17: ₪ 142.00 | E17: ₪ 160.00 | F17: ₪ 221.00 | G17: ₪ 256.00 | H17: ₪ 240.00 | O17: ₪ 1,275.00
B18: אבטחה | C18: ₪ 600.00 | D18: ₪ 600.00 | E18: ₪ 600.00 | F18: ₪ 600.00 | G18: ₪ 600.00 | H18: ₪ 600.00 | O18: ₪ 3,600.00
B19: סכום ביניים | C19: =SUBTOTAL(109,OfficeActual[ינו]) -> ₪ 11,387.00 | D19: =SUBTOTAL(109,OfficeActual[פבר]) -> ₪ 11,698.00 | E19: =SUBTOTAL(109,OfficeActual[מרץ]) -> ₪ 11,692.00 | F19: =SUBTOTAL(109,OfficeActual[אפר]) -> ₪ 11,611.00 | G19: =SUBTOTAL(109,OfficeActual[מאי]) -> ₪ 11,508.00 | H19: =SUBTOTAL(109,OfficeActual[יונ]) -> ₪ 11,454.00 | I19: =SUBTOTAL(109,OfficeActual[יול]) -> ₪ 0.00 | J19: =SUBTOTAL(109,OfficeActual[אוג]) -> ₪ 0.00 | K19: =SUBTOTAL(109,OfficeActual[ספט]) -> ₪ 0.00 | L19: =SUBTOTAL(109,OfficeActual[אוק]) -> ₪ 0.00 | M19: =SUBTOTAL(109,OfficeActual[נוב]) -> ₪ 0.00 | N19: =SUBTOTAL(109,OfficeActual[דצמ]) -> ₪ 0.00 | O19: =SUBTOTAL(109,OfficeActual[שנה]) -> ₪ 69,350.00
B21: עלויות שיווק | C21: ינו | D21: פבר | E21: מרץ | F21: אפר | G21: מאי | H21: יונ | I21: יול | J21: אוג | K21: ספט | L21: אוק | M21: נוב | N21: דצמ | O21: שנה
B22: אירוח אתר אינטרנט | C22: ₪ 500.00 | D22: ₪ 500.00 | E22: ₪ 500.00 | F22: ₪ 500.00 | G22: ₪ 500.00 | H22: ₪ 500.00 | O22: =SUM(C22:N22) -> ₪ 3,000.00
B23: עדכוני אתר אינטרנט | C23: ₪ 200.00 | D23: ₪ 200.00 | E23: ₪ 200.00 | F23: ₪ 200.00 | G23: ₪ 200.00 | H23: ₪ 1,500.00 | O23: ₪ 2,500.00
B24: הכנת חומרי שיווק | C24: ₪ 4,800.00 | D24: ₪ 0.00 | E24: ₪ 0.00 | F24: ₪ 5,500.00 | G24: ₪ 0.00 | H24: ₪ 0.00 | O24: ₪ 10,300.00
B25: הדפסת חומרי שיווק | C25: ₪ 100.00 | D25: ₪ 500.00 | E25: ₪ 100.00 | F25: ₪ 100.00 | G25: ₪ 600.00 | H25: ₪ 180.00 | O25: ₪ 1,580.00
B26: אירועים שיווקיים | C26: ₪ 1,800.00 | D26: ₪ 2,200.00 | E26: ₪ 2,200.00 | F26: ₪ 4,700.00 | G26: ₪ 1,500.00 | H26: ₪ 2,300.00 | O26: ₪ 14,700.00
B27: הוצאות שונות | C27: ₪ 145.00 | D27: ₪ 156.00 | E27: ₪ 123.00 | F27: ₪ 223.00 | G27: ₪ 187.00 | H27: ₪ 245.00 | O27: ₪ 1,079.00
B28: סכום ביניים | C28: =SUBTOTAL(109,MarketingActual[ינו]) -> ₪ 7,545.00 | D28: =SUBTOTAL(109,MarketingActual[פבר]) -> ₪ 3,556.00 | E28: =SUBTOTAL(109,MarketingActual[מרץ]) -> ₪ 3,123.00 | F28: =SUBTOTAL(109,MarketingActual[אפר]) -> ₪ 11,223.00 | G28: =SUBTOTAL(109,MarketingActual[מאי]) -> ₪ 2,987.00 | H28: =SUBTOTAL(109,MarketingActual[יונ]) -> ₪ 4,725.00 | I28: =SUBTOTAL(109,MarketingActual[יול]) -> ₪ 0.00 | J28: =SUBTOTAL(109,MarketingActual[אוג]) -> ₪ 0.00 | K28: =SUBTOTAL(109,MarketingActual[ספט]) -> ₪ 0.00 | L28: =SUBTOTAL(109,MarketingActual[אוק]) -> ₪ 0.00 | M28: =SUBTOTAL(109,MarketingActual[נוב]) -> ₪ 0.00 | N28: =SUBTOTAL(109,MarketingActual[דצמ]) -> ₪ 0.00 | O28: =SUBTOTAL(109,MarketingActual[שנה]) -> ₪ 33,159.00
B30: הדרכה/נסיעה | C30: ינו | D30: פבר | E30: מרץ | F30: אפר | G30: מאי | H30: יונ | I30: יול | J30: אוג | K30: ספט | L30: אוק | M30: נוב | N30: דצמ | O30: שנה
B31: קורסי הדרכה | C31: ₪ 1,600.00 | D31: ₪ 2,400.00 | E31: ₪ 1,400.00 | F31: ₪ 1,600.00 | G31: ₪ 1,200.00 | H31: ₪ 2,800.00 | O31: =SUM(C31:N31) -> ₪ 11,000.00
B32: עלויות נסיעה הקשורות להדרכה | C32: ₪ 1,200.00 | D32: ₪ 2,200.00 | E32: ₪ 1,400.00 | F32: ₪ 1,200.00 | G32: ₪ 800.00 | H32: ₪ 3,500.00 | O32: =SUM(C32:N32) -> ₪ 10,300.00
B33: סכום ביניים | C33: =SUBTOTAL(109,TrainingAndTravelActual[ינו]) -> ₪ 2,800.00 | D33: =SUBTOTAL(109,TrainingAndTravelActual[פבר]) -> ₪ 4,600.00 | E33: =SUBTOTAL(109,TrainingAndTravelActual[מרץ]) -> ₪ 2,800.00 | F33: =SUBTOTAL(109,TrainingAndTravelActual[אפר]) -> ₪ 2,800.00 | G33: =SUBTOTAL(109,TrainingAndTravelActual[מאי]) -> ₪ 2,000.00 | H33: =SUBTOTAL(109,TrainingAndTravelActual[יונ]) -> ₪ 6,300.00 | I33: =SUBTOTAL(109,TrainingAndTravelActual[יול]) -> ₪ 0.00 | J33: =SUBTOTAL(109,TrainingAndTravelActual[אוג]) -> ₪ 0.00 | K33: =SUBTOTAL(109,TrainingAndTravelActual[ספט]) -> ₪ 0.00 | L33: =SUBTOTAL(109,TrainingAndTravelActual[אוק]) -> ₪ 0.00 | M33: =SUBTOTAL(109,TrainingAndTravelActual[נוב]) -> ₪ 0.00 | N33: =SUBTOTAL(109,TrainingAndTravelActual[דצמ]) -> ₪ 0.00 | O33: =SUBTOTAL(109,TrainingAndTravelActual[שנה]) -> ₪ 21,300.00
B35: הוצאות מתוכננות כוללות | C35: ינו | D35: פבר | E35: מרץ | F35: אפר | G35: מאי | H35: יונ | I35: יול | J35: אוג | K35: ספט | L35: אוק | M35: נוב | N35: דצמ | O35: שנה
B36: הוצאות חודשיות בפועל | C36: =TrainingAndTravelActual[[#Totals],[ינו]]+MarketingActual[[#Totals],[ינו]]+OfficeActual[[#Totals],[ינו]]+EmployeeActual[[#Totals],[ינו]] -> ₪ 129,682.00 | D36: =TrainingAndTravelActual[[#Totals],[פבר]]+MarketingActual[[#Totals],[פבר]]+OfficeActual[[#Totals],[פבר]]+EmployeeActual[[#Totals],[פבר]] -> ₪ 127,804.00 | E36: =TrainingAndTravelActual[[#Totals],[מרץ]]+MarketingActual[[#Totals],[מרץ]]+OfficeActual[[#Totals],[מרץ]]+EmployeeActual[[#Totals],[מרץ]] -> ₪ 125,565.00 | F36: =TrainingAndTravelActual[[#Totals],[אפר]]+MarketingActual[[#Totals],[אפר]]+OfficeActual[[#Totals],[אפר]]+EmployeeActual[[#Totals],[אפר]] -> ₪ 137,394.00 | G36: =TrainingAndTravelActual[[#Totals],[מאי]]+MarketingActual[[#Totals],[מאי]]+OfficeActual[[#Totals],[מאי]]+EmployeeActual[[#Totals],[מאי]] -> ₪ 128,255.00 | H36: =TrainingAndTravelActual[[#Totals],[יונ]]+MarketingActual[[#Totals],[יונ]]+OfficeActual[[#Totals],[יונ]]+EmployeeActual[[#Totals],[יונ]] -> ₪ 134,239.00 | I36: =TrainingAndTravelActual[[#Totals],[יול]]+MarketingActual[[#Totals],[יול]]+OfficeActual[[#Totals],[יול]]+EmployeeActual[[#Totals],[יול]] -> ₪ 0.00 | J36: =TrainingAndTravelActual[[#Totals],[אוג]]+MarketingActual[[#Totals],[אוג]]+OfficeActual[[#Totals],[אוג]]+EmployeeActual[[#Totals],[אוג]] -> ₪ 0.00 | K36: =TrainingAndTravelActual[[#Totals],[ספט]]+MarketingActual[[#Totals],[ספט]]+OfficeActual[[#Totals],[ספט]]+EmployeeActual[[#Totals],[ספט]] -> ₪ 0.00 | L36: =TrainingAndTravelActual[[#Totals],[אוק]]+MarketingActual[[#Totals],[אוק]]+OfficeActual[[#Totals],[אוק]]+EmployeeActual[[#Totals],[אוק]] -> ₪ 0.00 | M36: =TrainingAndTravelActual[[#Totals],[נוב]]+MarketingActual[[#Totals],[נוב]]+OfficeActual[[#Totals],[נוב]]+EmployeeActual[[#Totals],[נוב]] -> ₪ 0.00 | N36: =TrainingAndTravelActual[[#Totals],[דצמ]]+MarketingActual[[#Totals],[דצמ]]+OfficeActual[[#Totals],[דצמ]]+EmployeeActual[[#Totals],[דצמ]] -> ₪ 0.00 | O36: =TrainingAndTravelActual[[#Totals],[שנה]]+MarketingActual[[#Totals],[שנה]]+OfficeActual[[#Totals],[שנה]]+EmployeeActual[[#Totals],[שנה]] -> ₪ 782,939.00
B37: הוצאות כוללות בפועל | C37: =SUM($C$36:C36) -> ₪ 129,682.00 | D37: =SUM($C$36:D36) -> ₪ 257,486.00 | E37: =SUM($C$36:E36) -> ₪ 383,051.00 | F37: =SUM($C$36:F36) -> ₪ 520,445.00 | G37: =SUM($C$36:G36) -> ₪ 648,700.00 | H37: =SUM($C$36:H36) -> ₪ 782,939.00 | I37: =SUM($C$36:I36) -> ₪ 782,939.00 | J37: =SUM($C$36:J36) -> ₪ 782,939.00 | K37: =SUM($C$36:K36) -> ₪ 782,939.00 | L37: =SUM($C$36:L36) -> ₪ 782,939.00 | M37: =SUM($C$36:M36) -> ₪ 782,939.00 | N37: =SUM($C$36:N36) -> ₪ 782,939.00

Sheet שונות הוצאות
B2: ='הוצאות מתוכננות'!B2:D3 -> שם החברה | K2: =worksheet_title -> פירוט ההוצאות המשוערות
K3: התאים המוצללים כוללים חישובים.
B4: שונות הוצאות | C4: ינו | D4: פבר | E4: מרץ | F4: אפר | G4: מאי | H4: יונ | I4: יול | J4: אוג | K4: ספט | L4: אוק | M4: נוב | N4: דצמ | O4: שנה
B5: עלויות עובדים | C5: ינו | D5: פבר | E5: מרץ | F5: אפר | G5: מאי | H5: יונ | I5: יול | J5: אוג | K5: ספט | L5: אוק | M5: נוב | N5: דצמ | O5: שנה
B6: שכר | C6: =INDEX(EmployeePlan[],MATCH(INDEX(EmployeeVariances[],ROW()-ROW(EmployeeVariances[[#Headers],[ינו]]),1),INDEX(EmployeePlan[],,1),0),MATCH(EmployeeVariances[[#Headers],[ינו]],EmployeePlan[#Headers],0))-INDEX(EmployeeActual[],MATCH(INDEX(EmployeeVariances[],ROW()-ROW(EmployeeVariances[[#Headers],[ינו]]),1),INDEX(EmployeePlan[],,1),0),MATCH(EmployeeVariances[[#Headers],[ינו]],EmployeeActual[#Headers],0)) -> ₪ 0.00 | D6: =INDEX(EmployeePlan[],MATCH(INDEX(EmployeeVariances[],ROW()-ROW(EmployeeVariances[[#Headers],[פבר]]),1),INDEX(EmployeePlan[],,1),0),MATCH(EmployeeVariances[[#Headers],[פבר]],EmployeePlan[#Headers],0))-INDEX(EmployeeActual[],MATCH(INDEX(EmployeeVariances[],ROW()-ROW(EmployeeVariances[[#Headers],[פבר]]),1),INDEX(EmployeePlan[],,1),0),MATCH(EmployeeVariances[[#Headers],[פבר]],EmployeeActual[#Headers],0)) -> ₪ 0.00 | E6: =INDEX(EmployeePlan[],MATCH(INDEX(EmployeeVariances[],ROW()-ROW(EmployeeVariances[[#Headers],[מרץ]]),1),INDEX(EmployeePlan[],,1),0),MATCH(EmployeeVariances[[#Headers],[מרץ]],EmployeePlan[#Headers],0))-INDEX(EmployeeActual[],MATCH(INDEX(EmployeeVariances[],ROW()-ROW(EmployeeVariances[[#Headers],[מרץ]]),1),INDEX(EmployeePlan[],,1),0),MATCH(EmployeeVariances[[#Headers],[מרץ]],EmployeeActual[#Headers],0)) -> ₪ 0.00 | F6: =INDEX(EmployeePlan[],MATCH(INDEX(EmployeeVariances[],ROW()-ROW(EmployeeVariances[[#Headers],[אפר]]),1),INDEX(EmployeePlan[],,1),0),MATCH(EmployeeVariances[[#Headers],[אפר]],EmployeePlan[#Headers],0))-INDEX(EmployeeActual[],MATCH(INDEX(EmployeeVariances[],ROW()-ROW(EmployeeVariances[[#Headers],[אפר]]),1),INDEX(EmployeePlan[],,1),0),MATCH(EmployeeVariances[[#Headers],[אפר]],EmployeeActual[#Headers],0)) -> ₪ -500.00 | G6: =INDEX(EmployeePlan[],MATCH(INDEX(EmployeeVariances[],ROW()-ROW(EmployeeVariances[[#Headers],[מאי]]),1),INDEX(EmployeePlan[],,1),0),MATCH(EmployeeVariances[[#Headers],[מאי]],EmployeePlan[#Headers],0))-INDEX(EmployeeActual[],MATCH(INDEX(EmployeeVariances[],ROW()-ROW(EmployeeVariances[[#Headers],[מאי]]),1),INDEX(EmployeePlan[],,1),0),MATCH(EmployeeVariances[[#Headers],[מאי]],EmployeeActual[#Headers],0)) -> ₪ -500.00 | H6: =INDEX(EmployeePlan[],MATCH(INDEX(EmployeeVariances[],ROW()-ROW(EmployeeVariances[[#Headers],[יונ]]),1),INDEX(EmployeePlan[],,1),0),MATCH(EmployeeVariances[[#Headers],[יונ]],EmployeePlan[#Headers],0))-INDEX(EmployeeActual[],MATCH(INDEX(EmployeeVariances[],ROW()-ROW(EmployeeVariances[[#Headers],[יונ]]),1),INDEX(EmployeePlan[],,1),0),MATCH(EmployeeVariances[[#Headers],[יונ]],EmployeeActual[#Headers],0)) -> ₪ -500.00 | I6: =INDEX(EmployeePlan[],MATCH(INDEX(EmployeeVariances[],ROW()-ROW(EmployeeVariances[[#Headers],[יול]]),1),INDEX(EmployeePlan[],,1),0),MATCH(EmployeeVariances[[#Headers],[יול]],EmployeePlan[#Headers],0))-INDEX(EmployeeActual[],MATCH(INDEX(EmployeeVariances[],ROW()-ROW(EmployeeVariances[[#Headers],[יול]]),1),INDEX(EmployeePlan[],,1),0),MATCH(EmployeeVariances[[#Headers],[יול]],EmployeeActual[#Headers],0)) -> ₪ 87,500.00 | J6: =INDEX(EmployeePlan[],MATCH(INDEX(EmployeeVariances[],ROW()-ROW(EmployeeVariances[[#Headers],[אוג]]),1),INDEX(EmployeePlan[],,1),0),MATCH(EmployeeVariances[[#Headers],[אוג]],EmployeePlan[#Headers],0))-INDEX(EmployeeActual[],MATCH(INDEX(EmployeeVariances[],ROW()-ROW(EmployeeVariances[[#Headers],[אוג]]),1),INDEX(EmployeePlan[],,1),0),MATCH(EmployeeVariances[[#Headers],[אוג]],EmployeeActual[#Headers],0)) -> ₪ 92,400.00 | K6: =INDEX(EmployeePlan[],MATCH(INDEX(EmployeeVariances[],ROW()-ROW(EmployeeVariances[[#Headers],[ספט]]),1),INDEX(EmployeePlan[],,1),0),MATCH(EmployeeVariances[[#Headers],[ספט]],EmployeePlan[#Headers],0))-INDEX(EmployeeActual[],MATCH(INDEX(EmployeeVariances[],ROW()-ROW(EmployeeVariances[[#Headers],[ספט]]),1),INDEX(EmployeePlan[],,1),0),MATCH(EmployeeVariances[[#Headers],[ספט]],EmployeeActual[#Headers],0)) -> ₪ 92,400.00 | L6: =INDEX(EmployeePlan[],MATCH(INDEX(EmployeeVariances[],ROW()-ROW(EmployeeVariances[[#Headers],[אוק]]),1),INDEX(EmployeePlan[],,1),0),MATCH(EmployeeVariances[[#Headers],[אוק]],EmployeePlan[#Headers],0))-INDEX(EmployeeActual[],MATCH(INDEX(EmployeeVariances[],ROW()-ROW(EmployeeVariances[[#Headers],[אוק]]),1),INDEX(EmployeePlan[],,1),0),MATCH(EmployeeVariances[[#Headers],[אוק]],EmployeeActual[#Headers],0)) -> ₪ 92,400.00 | M6: =INDEX(EmployeePlan[],MATCH(INDEX(EmployeeVariances[],ROW()-ROW(EmployeeVariances[[#Headers],[נוב]]),1),INDEX(EmployeePlan[],,1),0),MATCH(EmployeeVariances[[#Headers],[נוב]],EmployeePlan[#Headers],0))-INDEX(EmployeeActual[],MATCH(INDEX(EmployeeVariances[],ROW()-ROW(EmployeeVariances[[#Headers],[נוב]]),1),INDEX(EmployeePlan[],,1),0),MATCH(EmployeeVariances[[#Headers],[נוב]],EmployeeActual[#Headers],0)) -> ₪ 92,400.00 | N6: =INDEX(EmployeePlan[],MATCH(INDEX(EmployeeVariances[],ROW()-ROW(EmployeeVariances[[#Headers],[דצמ]]),1),INDEX(EmployeePlan[],,1),0),MATCH(EmployeeVariances[[#Headers],[דצמ]],EmployeePlan[#Headers],0))-INDEX(EmployeeActual[],MATCH(INDEX(EmployeeVariances[],ROW()-ROW(EmployeeVariances[[#Headers],[דצמ]]),1),INDEX(EmployeePlan[],,1),0),MATCH(EmployeeVariances[[#Headers],[דצמ]],EmployeeActual[#Headers],0)) -> ₪ 92,400.00 | O6: =SUM(EmployeeVariances[[#This Row],[ינו]:[דצמ]]) -> ₪ 548,000.00
B7: הטבות | C7: =INDEX(EmployeePlan[],MATCH(INDEX(EmployeeVariances[],ROW()-ROW(EmployeeVariances[[#Headers],[ינו]]),1),INDEX(EmployeePlan[],,1),0),MATCH(EmployeeVariances[[#Headers],[ינו]],EmployeePlan[#Headers],0))-INDEX(EmployeeActual[],MATCH(INDEX(EmployeeVariances[],ROW()-ROW(EmployeeVariances[[#Headers],[ינו]]),1),INDEX(EmployeePlan[],,1),0),MATCH(EmployeeVariances[[#Headers],[ינו]],EmployeeActual[#Headers],0)) -> ₪ 0.00 | D7: =INDEX(EmployeePlan[],MATCH(INDEX(EmployeeVariances[],ROW()-ROW(EmployeeVariances[[#Headers],[פבר]]),1),INDEX(EmployeePlan[],,1),0),MATCH(EmployeeVariances[[#Headers],[פבר]],EmployeePlan[#Headers],0))-INDEX(EmployeeActual[],MATCH(INDEX(EmployeeVariances[],ROW()-ROW(EmployeeVariances[[#Headers],[פבר]]),1),INDEX(EmployeePlan[],,1),0),MATCH(EmployeeVariances[[#Headers],[פבר]],EmployeeActual[#Headers],0)) -> ₪ 0.00 | E7: =INDEX(EmployeePlan[],MATCH(INDEX(EmployeeVariances[],ROW()-ROW(EmployeeVariances[[#Headers],[מרץ]]),1),INDEX(EmployeePlan[],,1),0),MATCH(EmployeeVariances[[#Headers],[מרץ]],EmployeePlan[#Headers],0))-INDEX(EmployeeActual[],MATCH(INDEX(EmployeeVariances[],ROW()-ROW(EmployeeVariances[[#Headers],[מרץ]]),1),INDEX(EmployeePlan[],,1),0),MATCH(EmployeeVariances[[#Headers],[מרץ]],EmployeeActual[#Headers],0)) -> ₪ 0.00 | F7: =INDEX(EmployeePlan[],MATCH(INDEX(EmployeeVariances[],ROW()-ROW(EmployeeVariances[[#Headers],[אפר]]),1),INDEX(EmployeePlan[],,1),0),MATCH(EmployeeVariances[[#Headers],[אפר]],EmployeePlan[#Headers],0))-INDEX(EmployeeActual[],MATCH(INDEX(EmployeeVariances[],ROW()-ROW(EmployeeVariances[[#Headers],[אפר]]),1),INDEX(EmployeePlan[],,1),0),MATCH(EmployeeVariances[[#Headers],[אפר]],EmployeeActual[#Headers],0)) -> ₪ -135.00 | G7: =INDEX(EmployeePlan[],MATCH(INDEX(EmployeeVariances[],ROW()-ROW(EmployeeVariances[[#Headers],[מאי]]),1),INDEX(EmployeePlan[],,1),0),MATCH(EmployeeVariances[[#Headers],[מאי]],EmployeePlan[#Headers],0))-INDEX(EmployeeActual[],MATCH(INDEX(EmployeeVariances[],ROW()-ROW(EmployeeVariances[[#Headers],[מאי]]),1),INDEX(EmployeePlan[],,1),0),MATCH(EmployeeVariances[[#Headers],[מאי]],EmployeeActual[#Headers],0)) -> ₪ -135.00 | H7: =INDEX(EmployeePlan[],MATCH(INDEX(EmployeeVariances[],ROW()-ROW(EmployeeVariances[[#Headers],[יונ]]),1),INDEX(EmployeePlan[],,1),0),MATCH(EmployeeVariances[[#Headers],[יונ]],EmployeePlan[#Headers],0))-INDEX(EmployeeActual[],MATCH(INDEX(EmployeeVariances[],ROW()-ROW(EmployeeVariances[[#Headers],[יונ]]),1),INDEX(EmployeePlan[],,1),0),MATCH(EmployeeVariances[[#Headers],[יונ]],EmployeeActual[#Headers],0)) -> ₪ -135.00 | I7: =INDEX(EmployeePlan[],MATCH(INDEX(EmployeeVariances[],ROW()-ROW(EmployeeVariances[[#Headers],[יול]]),1),INDEX(EmployeePlan[],,1),0),MATCH(EmployeeVariances[[#Headers],[יול]],EmployeePlan[#Headers],0))-INDEX(EmployeeActual[],MATCH(INDEX(EmployeeVariances[],ROW()-ROW(EmployeeVariances[[#Headers],[יול]]),1),INDEX(EmployeePlan[],,1),0),MATCH(EmployeeVariances[[#Headers],[יול]],EmployeeActual[#Headers],0)) -> ₪ 23,625.00 | J7: =INDEX(EmployeePlan[],MATCH(INDEX(EmployeeVariances[],ROW()-ROW(EmployeeVariances[[#Headers],[אוג]]),1),INDEX(EmployeePlan[],,1),0),MATCH(EmployeeVariances[[#Headers],[אוג]],EmployeePlan[#Headers],0))-INDEX(EmployeeActual[],MATCH(INDEX(EmployeeVariances[],ROW()-ROW(EmployeeVariances[[#Headers],[אוג]]),1),INDEX(EmployeePlan[],,1),0),MATCH(EmployeeVariances[[#Headers],[אוג]],EmployeeActual[#Headers],0)) -> ₪ 24,948.00 | K7: =INDEX(EmployeePlan[],MATCH(INDEX(EmployeeVariances[],ROW()-ROW(EmployeeVariances[[#Headers],[ספט]]),1),INDEX(EmployeePlan[],,1),0),MATCH(EmployeeVariances[[#Headers],[ספט]],EmployeePlan[#Headers],0))-INDEX(EmployeeActual[],MATCH(INDEX(EmployeeVariances[],ROW()-ROW(EmployeeVariances[[#Headers],[ספט]]),1),INDEX(EmployeePlan[],,1),0),MATCH(EmployeeVariances[[#Headers],[ספט]],EmployeeActual[#Headers],0)) -> ₪ 24,948.00 | L7: =INDEX(EmployeePlan[],MATCH(INDEX(EmployeeVariances[],ROW()-ROW(EmployeeVariances[[#Headers],[אוק]]),1),INDEX(EmployeePlan[],,1),0),MATCH(EmployeeVariances[[#Headers],[אוק]],EmployeePlan[#Headers],0))-INDEX(EmployeeActual[],MATCH(INDEX(EmployeeVariances[],ROW()-ROW(EmployeeVariances[[#Headers],[אוק]]),1),INDEX(EmployeePlan[],,1),0),MATCH(EmployeeVariances[[#Headers],[אוק]],EmployeeActual[#Headers],0)) -> ₪ 24,948.00 | M7: =INDEX(EmployeePlan[],MATCH(INDEX(EmployeeVariances[],ROW()-ROW(EmployeeVariances[[#Headers],[נוב]]),1),INDEX(EmployeePlan[],,1),0),MATCH(EmployeeVariances[[#Headers],[נוב]],EmployeePlan[#Headers],0))-INDEX(EmployeeActual[],MATCH(INDEX(EmployeeVariances[],ROW()-ROW(EmployeeVariances[[#Headers],[נוב]]),1),INDEX(EmployeePlan[],,1),0),MATCH(EmployeeVariances[[#Headers],[נוב]],EmployeeActual[#Headers],0)) -> ₪ 24,948.00 | N7: =INDEX(EmployeePlan[],MATCH(INDEX(EmployeeVariances[],ROW()-ROW(EmployeeVariances[[#Headers],[דצמ]]),1),INDEX(EmployeePlan[],,1),0),MATCH(EmployeeVariances[[#Headers],[דצמ]],EmployeePlan[#Headers],0))-INDEX(EmployeeActual[],MATCH(INDEX(EmployeeVariances[],ROW()-ROW(EmployeeVariances[[#Headers],[דצמ]]),1),INDEX(EmployeePlan[],,1),0),MATCH(EmployeeVariances[[#Headers],[דצמ]],EmployeeActual[#Headers],0)) -> ₪ 24,948.00 | O7: =SUM(EmployeeVariances[[#This Row],[ינו]:[דצמ]]) -> ₪ 147,960.00
B8: סכום ביניים | C8: =SUBTOTAL(109,EmployeeVariances[ינו]) -> ₪ 0.00 | D8: =SUBTOTAL(109,EmployeeVariances[פבר]) -> ₪ 0.00 | E8: =SUBTOTAL(109,EmployeeVariances[מרץ]) -> ₪ 0.00 | F8: =SUBTOTAL(109,EmployeeVariances[אפר]) -> ₪ -635.00 | G8: =SUBTOTAL(109,EmployeeVariances[מאי]) -> ₪ -635.00 | H8: =SUBTOTAL(109,EmployeeVariances[יונ]) -> ₪ -635.00 | I8: =SUBTOTAL(109,EmployeeVariances[יול]) -> ₪ 111,125.00 | J8: =SUBTOTAL(109,EmployeeVariances[אוג]) -> ₪ 117,348.00 | K8: =SUBTOTAL(109,EmployeeVariances[ספט]) -> ₪ 117,348.00 | L8: =SUBTOTAL(109,EmployeeVariances[אוק]) -> ₪ 117,348.00 | M8: =SUBTOTAL(109,EmployeeVariances[נוב]) -> ₪ 117,348.00 | N8: =SUBTOTAL(109,EmployeeVariances[דצמ]) -> ₪ 117,348.00 | O8: =SUBTOTAL(109,EmployeeVariances[שנה]) -> ₪ 695,960.00
B10: עלויות משרדיות | C10: ינו | D10: פבר | E10: מרץ | F10: אפר | G10: מאי | H10: יונ | I10: יול | J10: אוג | K10: ספט | L10: אוק | M10: נוב | N10: דצמ | O10: שנה
B11: שכ"ד למשרד | C11: =INDEX(OfficePlan[],MATCH(INDEX(OfficeVariances[],ROW()-ROW(OfficeVariances[[#Headers],[ינו]]),1),INDEX(OfficePlan[],,1),0),MATCH(OfficeVariances[[#Headers],[ינו]],OfficePlan[#Headers],0))-INDEX(OfficeActual[],MATCH(INDEX(OfficeVariances[],ROW()-ROW(OfficeVariances[[#Headers],[ינו]]),1),INDEX(OfficePlan[],,1),0),MATCH(OfficeVariances[[#Headers],[ינו]],OfficeActual[#Headers],0)) -> ₪ 0.00 | D11: =INDEX(OfficePlan[],MATCH(INDEX(OfficeVariances[],ROW()-ROW(OfficeVariances[[#Headers],[פבר]]),1),INDEX(OfficePlan[],,1),0),MATCH(OfficeVariances[[#Headers],[פבר]],OfficePlan[#Headers],0))-INDEX(OfficeActual[],MATCH(INDEX(OfficeVariances[],ROW()-ROW(OfficeVariances[[#Headers],[פבר]]),1),INDEX(OfficePlan[],,1),0),MATCH(OfficeVariances[[#Headers],[פבר]],OfficeActual[#Headers],0)) -> ₪ 0.00 | E11: =INDEX(OfficePlan[],MATCH(INDEX(OfficeVariances[],ROW()-ROW(OfficeVariances[[#Headers],[מרץ]]),1),INDEX(OfficePlan[],,1),0),MATCH(OfficeVariances[[#Headers],[מרץ]],OfficePlan[#Headers],0))-INDEX(OfficeActual[],MATCH(INDEX(OfficeVariances[],ROW()-ROW(OfficeVariances[[#Headers],[מרץ]]),1),INDEX(OfficePlan[],,1),0),MATCH(OfficeVariances[[#Headers],[מרץ]],OfficeActual[#Headers],0)) -> ₪ 0.00 | F11: =INDEX(OfficePlan[],MATCH(INDEX(OfficeVariances[],ROW()-ROW(OfficeVariances[[#Headers],[אפר]]),1),INDEX(OfficePlan[],,1),0),MATCH(OfficeVariances[[#Headers],[אפר]],OfficePlan[#Headers],0))-INDEX(OfficeActual[],MATCH(INDEX(OfficeVariances[],ROW()-ROW(OfficeVariances[[#Headers],[אפר]]),1),INDEX(OfficePlan[],,1),0),MATCH(OfficeVariances[[#Headers],[אפר]],OfficeActual[#Headers],0)) -> ₪ 0.00 | G11: =INDEX(OfficePlan[],MATCH(INDEX(OfficeVariances[],ROW()-ROW(OfficeVariances[[#Headers],[מאי]]),1),INDEX(OfficePlan[],,1),0),MATCH(OfficeVariances[[#Headers],[מאי]],OfficePlan[#Headers],0))-INDEX(OfficeActual[],MATCH(INDEX(OfficeVariances[],ROW()-ROW(OfficeVariances[[#Headers],[מאי]]),1),INDEX(OfficePlan[],,1),0),MATCH(OfficeVariances[[#Headers],[מאי]],OfficeActual[#Headers],0)) -> ₪ 0.00 | H11: =INDEX(OfficePlan[],MATCH(INDEX(OfficeVariances[],ROW()-ROW(OfficeVariances[[#Headers],[יונ]]),1),INDEX(OfficePlan[],,1),0),MATCH(OfficeVariances[[#Headers],[יונ]],OfficePlan[#Headers],0))-INDEX(OfficeActual[],MATCH(INDEX(OfficeVariances[],ROW()-ROW(OfficeVariances[[#Headers],[יונ]]),1),INDEX(OfficePlan[],,1),0),MATCH(OfficeVariances[[#Headers],[יונ]],OfficeActual[#Headers],0)) -> ₪ 0.00 | I11: =INDEX(OfficePlan[],MATCH(INDEX(OfficeVariances[],ROW()-ROW(OfficeVariances[[#Headers],[יול]]),1),INDEX(OfficePlan[],,1),0),MATCH(OfficeVariances[[#Headers],[יול]],OfficePlan[#Headers],0))-INDEX(OfficeActual[],MATCH(INDEX(OfficeVariances[],ROW()-ROW(OfficeVariances[[#Headers],[יול]]),1),INDEX(OfficePlan[],,1),0),MATCH(OfficeVariances[[#Headers],[יול]],OfficeActual[#Headers],0)) -> ₪ 9,800.00 | J11: =INDEX(OfficePlan[],MATCH(INDEX(OfficeVariances[],ROW()-ROW(OfficeVariances[[#Headers],[אוג]]),1),INDEX(OfficePlan[],,1),0),MATCH(OfficeVariances[[#Headers],[אוג]],OfficePlan[#Headers],0))-INDEX(OfficeActual[],MATCH(INDEX(OfficeVariances[],ROW()-ROW(OfficeVariances[[#Headers],[אוג]]),1),INDEX(OfficePlan[],,1),0),MATCH(OfficeVariances[[#Headers],[אוג]],OfficeActual[#Headers],0)) -> ₪ 9,800.00 | K11: =INDEX(OfficePlan[],MATCH(INDEX(OfficeVariances[],ROW()-ROW(OfficeVariances[[#Headers],[ספט]]),1),INDEX(OfficePlan[],,1),0),MATCH(OfficeVariances[[#Headers],[ספט]],OfficePlan[#Headers],0))-INDEX(OfficeActual[],MATCH(INDEX(OfficeVariances[],ROW()-ROW(OfficeVariances[[#Headers],[ספט]]),1),INDEX(OfficePlan[],,1),0),MATCH(OfficeVariances[[#Headers],[ספט]],OfficeActual[#Headers],0)) -> ₪ 9,800.00 | L11: =INDEX(OfficePlan[],MATCH(INDEX(OfficeVariances[],ROW()-ROW(OfficeVariances[[#Headers],[אוק]]),1),INDEX(OfficePlan[],,1),0),MATCH(OfficeVariances[[#Headers],[אוק]],OfficePlan[#Headers],0))-INDEX(OfficeActual[],MATCH(INDEX(OfficeVariances[],ROW()-ROW(OfficeVariances[[#Headers],[אוק]]),1),INDEX(OfficePlan[],,1),0),MATCH(OfficeVariances[[#Headers],[אוק]],OfficeActual[#Headers],0)) -> ₪ 9,800.00 | M11: =INDEX(OfficePlan[],MATCH(INDEX(OfficeVariances[],ROW()-ROW(OfficeVariances[[#Headers],[נוב]]),1),INDEX(OfficePlan[],,1),0),MATCH(OfficeVariances[[#Headers],[נוב]],OfficePlan[#Headers],0))-INDEX(OfficeActual[],MATCH(INDEX(OfficeVariances[],ROW()-ROW(OfficeVariances[[#Headers],[נוב]]),1),INDEX(OfficePlan[],,1),0),MATCH(OfficeVariances[[#Headers],[נוב]],OfficeActual[#Headers],0)) -> ₪ 9,800.00 | N11: =INDEX(OfficePlan[],MATCH(INDEX(OfficeVariances[],ROW()-ROW(OfficeVariances[[#Headers],[דצמ]]),1),INDEX(OfficePlan[],,1),0),MATCH(OfficeVariances[[#Headers],[דצמ]],OfficePlan[#Headers],0))-INDEX(OfficeActual[],MATCH(INDEX(OfficeVariances[],ROW()-ROW(OfficeVariances[[#Headers],[דצמ]]),1),INDEX(OfficePlan[],,1),0),MATCH(OfficeVariances[[#Headers],[דצמ]],OfficeActual[#Headers],0)) -> ₪ 9,800.00 | O11: =SUM(OfficeVariances[[#This Row],[ינו]:[דצמ]]) -> ₪ 58,800.00
B12: גז | C12: =INDEX(OfficePlan[],MATCH(INDEX(OfficeVariances[],ROW()-ROW(OfficeVariances[[#Headers],[ינו]]),1),INDEX(OfficePlan[],,1),0),MATCH(OfficeVariances[[#Headers],[ינו]],OfficePlan[#Headers],0))-INDEX(OfficeActual[],MATCH(INDEX(OfficeVariances[],ROW()-ROW(OfficeVariances[[#Headers],[ינו]]),1),INDEX(OfficePlan[],,1),0),MATCH(OfficeVariances[[#Headers],[ינו]],OfficeActual[#Headers],0)) -> ₪ -4.00 | D12: =INDEX(OfficePlan[],MATCH(INDEX(OfficeVariances[],ROW()-ROW(OfficeVariances[[#Headers],[פבר]]),1),INDEX(OfficePlan[],,1),0),MATCH(OfficeVariances[[#Headers],[פבר]],OfficePlan[#Headers],0))-INDEX(OfficeActual[],MATCH(INDEX(OfficeVariances[],ROW()-ROW(OfficeVariances[[#Headers],[פבר]]),1),INDEX(OfficePlan[],,1),0),MATCH(OfficeVariances[[#Headers],[פבר]],OfficeActual[#Headers],0)) -> ₪ -30.00 | E12: =INDEX(OfficePlan[],MATCH(INDEX(OfficeVariances[],ROW()-ROW(OfficeVariances[[#Headers],[מרץ]]),1),INDEX(OfficePlan[],,1),0),MATCH(OfficeVariances[[#Headers],[מרץ]],OfficePlan[#Headers],0))-INDEX(OfficeActual[],MATCH(INDEX(OfficeVariances[],ROW()-ROW(OfficeVariances[[#Headers],[מרץ]]),1),INDEX(OfficePlan[],,1),0),MATCH(OfficeVariances[[#Headers],[מרץ]],OfficeActual[#Headers],0)) -> ₪ 15.00 | F12: =INDEX(OfficePlan[],MATCH(INDEX(OfficeVariances[],ROW()-ROW(OfficeVariances[[#Headers],[אפר]]),1),INDEX(OfficePlan[],,1),0),MATCH(OfficeVariances[[#Headers],[אפר]],OfficePlan[#Headers],0))-INDEX(OfficeActual[],MATCH(INDEX(OfficeVariances[],ROW()-ROW(OfficeVariances[[#Headers],[אפר]]),1),INDEX(OfficePlan[],,1),0),MATCH(OfficeVariances[[#Headers],[אפר]],OfficeActual[#Headers],0)) -> ₪ -130.00 | G12: =INDEX(OfficePlan[],MATCH(INDEX(OfficeVariances[],ROW()-ROW(OfficeVariances[[#Headers],[מאי]]),1),INDEX(OfficePlan[],,1),0),MATCH(OfficeVariances[[#Headers],[מאי]],OfficePlan[#Headers],0))-INDEX(OfficeActual[],MATCH(INDEX(OfficeVariances[],ROW()-ROW(OfficeVariances[[#Headers],[מאי]]),1),INDEX(OfficePlan[],,1),0),MATCH(OfficeVariances[[#Headers],[מאי]],OfficeActual[#Headers],0)) -> ₪ 13.00 | H12: =INDEX(OfficePlan[],MATCH(INDEX(OfficeVariances[],ROW()-ROW(OfficeVariances[[#Headers],[יונ]]),1),INDEX(OfficePlan[],,1),0),MATCH(OfficeVariances[[#Headers],[יונ]],OfficePlan[#Headers],0))-INDEX(OfficeActual[],MATCH(INDEX(OfficeVariances[],ROW()-ROW(OfficeVariances[[#Headers],[יונ]]),1),INDEX(OfficePlan[],,1),0),MATCH(OfficeVariances[[#Headers],[יונ]],OfficeActual[#Headers],0)) -> ₪ 12.00 | I12: =INDEX(OfficePlan[],MATCH(INDEX(OfficeVariances[],ROW()-ROW(OfficeVariances[[#Headers],[יול]]),1),INDEX(OfficePlan[],,1),0),MATCH(OfficeVariances[[#Headers],[יול]],OfficePlan[#Headers],0))-INDEX(OfficeActual[],MATCH(INDEX(OfficeVariances[],ROW()-ROW(OfficeVariances[[#Headers],[יול]]),1),INDEX(OfficePlan[],,1),0),MATCH(OfficeVariances[[#Headers],[יול]],OfficeActual[#Headers],0)) -> ₪ 100.00 | J12: =INDEX(OfficePlan[],MATCH(INDEX(OfficeVariances[],ROW()-ROW(OfficeVariances[[#Headers],[אוג]]),1),INDEX(OfficePlan[],,1),0),MATCH(OfficeVariances[[#Headers],[אוג]],OfficePlan[#Headers],0))-INDEX(OfficeActual[],MATCH(INDEX(OfficeVariances[],ROW()-ROW(OfficeVariances[[#Headers],[אוג]]),1),INDEX(OfficePlan[],,1),0),MATCH(OfficeVariances[[#Headers],[אוג]],OfficeActual[#Headers],0)) -> ₪ 100.00 | K12: =INDEX(OfficePlan[],MATCH(INDEX(OfficeVariances[],ROW()-ROW(OfficeVariances[[#Headers],[ספט]]),1),INDEX(OfficePlan[],,1),0),MATCH(OfficeVariances[[#Headers],[ספט]],OfficePlan[#Headers],0))-INDEX(OfficeActual[],MATCH(INDEX(OfficeVariances[],ROW()-ROW(OfficeVariances[[#Headers],[ספט]]),1),INDEX(OfficePlan[],,1),0),MATCH(OfficeVariances[[#Headers],[ספט]],OfficeActual[#Headers],0)) -> ₪ 100.00 | L12: =INDEX(OfficePlan[],MATCH(INDEX(OfficeVariances[],ROW()-ROW(OfficeVariances[[#Headers],[אוק]]),1),INDEX(OfficePlan[],,1),0),MATCH(OfficeVariances[[#Headers],[אוק]],OfficePlan[#Headers],0))-INDEX(OfficeActual[],MATCH(INDEX(OfficeVariances[],ROW()-ROW(OfficeVariances[[#Headers],[אוק]]),1),INDEX(OfficePlan[],,1),0),MATCH(OfficeVariances[[#Headers],[אוק]],OfficeActual[#Headers],0)) -> ₪ 100.00 | M12: =INDEX(OfficePlan[],MATCH(INDEX(OfficeVariances[],ROW()-ROW(OfficeVariances[[#Headers],[נוב]]),1),INDEX(OfficePlan[],,1),0),MATCH(OfficeVariances[[#Headers],[נוב]],OfficePlan[#Headers],0))-INDEX(OfficeActual[],MATCH(INDEX(OfficeVariances[],ROW()-ROW(OfficeVariances[[#Headers],[נוב]]),1),INDEX(OfficePlan[],,1),0),MATCH(OfficeVariances[[#Headers],[נוב]],OfficeActual[#Headers],0)) -> ₪ 400.00 | N12: =INDEX(OfficePlan[],MATCH(INDEX(OfficeVariances[],ROW()-ROW(OfficeVariances[[#Headers],[דצמ]]),1),INDEX(OfficePlan[],,1),0),MATCH(OfficeVariances[[#Headers],[דצמ]],OfficePlan[#Headers],0))-INDEX(OfficeActual[],MATCH(INDEX(OfficeVariances[],ROW()-ROW(OfficeVariances[[#Headers],[דצמ]]),1),INDEX(OfficePlan[],,1),0),MATCH(OfficeVariances[[#Headers],[דצמ]],OfficeActual[#Headers],0)) -> ₪ 400.00 | O12: =SUM(OfficeVariances[[#This Row],[ינו]:[דצמ]]) -> ₪ 1,076.00
B13: חשמל | C13: =INDEX(OfficePlan[],MATCH(INDEX(OfficeVariances[],ROW()-ROW(OfficeVariances[[#Headers],[ינו]]),1),INDEX(OfficePlan[],,1),0),MATCH(OfficeVariances[[#Headers],[ינו]],OfficePlan[#Headers],0))-INDEX(OfficeActual[],MATCH(INDEX(OfficeVariances[],ROW()-ROW(OfficeVariances[[#Headers],[ינו]]),1),INDEX(OfficePlan[],,1),0),MATCH(OfficeVariances[[#Headers],[ינו]],OfficeActual[#Headers],0)) -> ₪ 12.00 | D13: =INDEX(OfficePlan[],MATCH(INDEX(OfficeVariances[],ROW()-ROW(OfficeVariances[[#Headers],[פבר]]),1),INDEX(OfficePlan[],,1),0),MATCH(OfficeVariances[[#Headers],[פבר]],OfficePlan[#Headers],0))-INDEX(OfficeActual[],MATCH(INDEX(OfficeVariances[],ROW()-ROW(OfficeVariances[[#Headers],[פבר]]),1),INDEX(OfficePlan[],,1),0),MATCH(OfficeVariances[[#Headers],[פבר]],OfficeActual[#Headers],0)) -> ₪ 22.00 | E13: =INDEX(OfficePlan[],MATCH(INDEX(OfficeVariances[],ROW()-ROW(OfficeVariances[[#Headers],[מרץ]]),1),INDEX(OfficePlan[],,1),0),MATCH(OfficeVariances[[#Headers],[מרץ]],OfficePlan[#Headers],0))-INDEX(OfficeActual[],MATCH(INDEX(OfficeVariances[],ROW()-ROW(OfficeVariances[[#Headers],[מרץ]]),1),INDEX(OfficePlan[],,1),0),MATCH(OfficeVariances[[#Headers],[מרץ]],OfficeActual[#Headers],0)) -> ₪ 32.00 | F13: =INDEX(OfficePlan[],MATCH(INDEX(OfficeVariances[],ROW()-ROW(OfficeVariances[[#Headers],[אפר]]),1),INDEX(OfficePlan[],,1),0),MATCH(OfficeVariances[[#Headers],[אפר]],OfficePlan[#Headers],0))-INDEX(OfficeActual[],MATCH(INDEX(OfficeVariances[],ROW()-ROW(OfficeVariances[[#Headers],[אפר]]),1),INDEX(OfficePlan[],,1),0),MATCH(OfficeVariances[[#Headers],[אפר]],OfficeActual[#Headers],0)) -> ₪ 1.00 | G13: =INDEX(OfficePlan[],MATCH(INDEX(OfficeVariances[],ROW()-ROW(OfficeVariances[[#Headers],[מאי]]),1),INDEX(OfficePlan[],,1),0),MATCH(OfficeVariances[[#Headers],[מאי]],OfficePlan[#Headers],0))-INDEX(OfficeActual[],MATCH(INDEX(OfficeVariances[],ROW()-ROW(OfficeVariances[[#Headers],[מאי]]),1),INDEX(OfficePlan[],,1),0),MATCH(OfficeVariances[[#Headers],[מאי]],OfficeActual[#Headers],0)) -> ₪ -6.00 | H13: =INDEX(OfficePlan[],MATCH(INDEX(OfficeVariances[],ROW()-ROW(OfficeVariances[[#Headers],[יונ]]),1),INDEX(OfficePlan[],,1),0),MATCH(OfficeVariances[[#Headers],[יונ]],OfficePlan[#Headers],0))-INDEX(OfficeActual[],MATCH(INDEX(OfficeVariances[],ROW()-ROW(OfficeVariances[[#Headers],[יונ]]),1),INDEX(OfficePlan[],,1),0),MATCH(OfficeVariances[[#Headers],[יונ]],OfficeActual[#Headers],0)) -> ₪ 10.00 | I13: =INDEX(OfficePlan[],MATCH(INDEX(OfficeVariances[],ROW()-ROW(OfficeVariances[[#Headers],[יול]]),1),INDEX(OfficePlan[],,1),0),MATCH(OfficeVariances[[#Headers],[יול]],OfficePlan[#Headers],0))-INDEX(OfficeActual[],MATCH(INDEX(OfficeVariances[],ROW()-ROW(OfficeVariances[[#Headers],[יול]]),1),INDEX(OfficePlan[],,1),0),MATCH(OfficeVariances[[#Headers],[יול]],OfficeActual[#Headers],0)) -> ₪ 300.00 | J13: =INDEX(OfficePlan[],MATCH(INDEX(OfficeVariances[],ROW()-ROW(OfficeVariances[[#Headers],[אוג]]),1),INDEX(OfficePlan[],,1),0),MATCH(OfficeVariances[[#Headers],[אוג]],OfficePlan[#Headers],0))-INDEX(OfficeActual[],MATCH(INDEX(OfficeVariances[],ROW()-ROW(OfficeVariances[[#Headers],[אוג]]),1),INDEX(OfficePlan[],,1),0),MATCH(OfficeVariances[[#Headers],[אוג]],OfficeActual[#Headers],0)) -> ₪ 300.00 | K13: =INDEX(OfficePlan[],MATCH(INDEX(OfficeVariances[],ROW()-ROW(OfficeVariances[[#Headers],[ספט]]),1),INDEX(OfficePlan[],,1),0),MATCH(OfficeVariances[[#Headers],[ספט]],OfficePlan[#Headers],0))-INDEX(OfficeActual[],MATCH(INDEX(OfficeVariances[],ROW()-ROW(OfficeVariances[[#Headers],[ספט]]),1),INDEX(OfficePlan[],,1),0),MATCH(OfficeVariances[[#Headers],[ספט]],OfficeActual[#Headers],0)) -> ₪ 300.00 | L13: =INDEX(OfficePlan[],MATCH(INDEX(OfficeVariances[],ROW()-ROW(OfficeVariances[[#Headers],[אוק]]),1),INDEX(OfficePlan[],,1),0),MATCH(OfficeVariances[[#Headers],[אוק]],OfficePlan[#Headers],0))-INDEX(OfficeActual[],MATCH(INDEX(OfficeVariances[],ROW()-ROW(OfficeVariances[[#Headers],[אוק]]),1),INDEX(OfficePlan[],,1),0),MATCH(OfficeVariances[[#Headers],[אוק]],OfficeActual[#Headers],0)) -> ₪ 300.00 | M13: =INDEX(OfficePlan[],MATCH(INDEX(OfficeVariances[],ROW()-ROW(OfficeVariances[[#Headers],[נוב]]),1),INDEX(OfficePlan[],,1),0),MATCH(OfficeVariances[[#Headers],[נוב]],OfficePlan[#Headers],0))-INDEX(OfficeActual[],MATCH(INDEX(OfficeVariances[],ROW()-ROW(OfficeVariances[[#Headers],[נוב]]),1),INDEX(OfficePlan[],,1),0),MATCH(OfficeVariances[[#Headers],[נוב]],OfficeActual[#Headers],0)) -> ₪ 300.00 | N13: =INDEX(OfficePlan[],MATCH(INDEX(OfficeVariances[],ROW()-ROW(OfficeVariances[[#Headers],[דצמ]]),1),INDEX(OfficePlan[],,1),0),MATCH(OfficeVariances[[#Headers],[דצמ]],OfficePlan[#Headers],0))-INDEX(OfficeActual[],MATCH(INDEX(OfficeVariances[],ROW()-ROW(OfficeVariances[[#Headers],[דצמ]]),1),INDEX(OfficePlan[],,1),0),MATCH(OfficeVariances[[#Headers],[דצמ]],OfficeActual[#Headers],0)) -> ₪ 300.00 | O13: =SUM(OfficeVariances[[#This Row],[ינו]:[דצמ]]) -> ₪ 1,871.00
B14: מים | C14: =INDEX(OfficePlan[],MATCH(INDEX(OfficeVariances[],ROW()-ROW(OfficeVariances[[#Headers],[ינו]]),1),INDEX(OfficePlan[],,1),0),MATCH(OfficeVariances[[#Headers],[ינו]],OfficePlan[#Headers],0))-INDEX(OfficeActual[],MATCH(INDEX(OfficeVariances[],ROW()-ROW(OfficeVariances[[#Headers],[ינו]]),1),INDEX(OfficePlan[],,1),0),MATCH(OfficeVariances[[#Headers],[ינו]],OfficeActual[#Headers],0)) -> ₪ 5.00 | D14: =INDEX(OfficePlan[],MATCH(INDEX(OfficeVariances[],ROW()-ROW(OfficeVariances[[#Headers],[פבר]]),1),INDEX(OfficePlan[],,1),0),MATCH(OfficeVariances[[#Headers],[פבר]],OfficePlan[#Headers],0))-INDEX(OfficeActual[],MATCH(INDEX(OfficeVariances[],ROW()-ROW(OfficeVariances[[#Headers],[פבר]]),1),INDEX(OfficePlan[],,1),0),MATCH(OfficeVariances[[#Headers],[פבר]],OfficeActual[#Headers],0)) -> ₪ 7.00 | E14: =INDEX(OfficePlan[],MATCH(INDEX(OfficeVariances[],ROW()-ROW(OfficeVariances[[#Headers],[מרץ]]),1),INDEX(OfficePlan[],,1),0),MATCH(OfficeVariances[[#Headers],[מרץ]],OfficePlan[#Headers],0))-INDEX(OfficeActual[],MATCH(INDEX(OfficeVariances[],ROW()-ROW(OfficeVariances[[#Headers],[מרץ]]),1),INDEX(OfficePlan[],,1),0),MATCH(OfficeVariances[[#Headers],[מרץ]],OfficeActual[#Headers],0)) -> ₪ 6.00 | F14: =INDEX(OfficePlan[],MATCH(INDEX(OfficeVariances[],ROW()-ROW(OfficeVariances[[#Headers],[אפר]]),1),INDEX(OfficePlan[],,1),0),MATCH(OfficeVariances[[#Headers],[אפר]],OfficePlan[#Headers],0))-INDEX(OfficeActual[],MATCH(INDEX(OfficeVariances[],ROW()-ROW(OfficeVariances[[#Headers],[אפר]]),1),INDEX(OfficePlan[],,1),0),MATCH(OfficeVariances[[#Headers],[אפר]],OfficeActual[#Headers],0)) -> ₪ 4.00 | G14: =INDEX(OfficePlan[],MATCH(INDEX(OfficeVariances[],ROW()-ROW(OfficeVariances[[#Headers],[מאי]]),1),INDEX(OfficePlan[],,1),0),MATCH(OfficeVariances[[#Headers],[מאי]],OfficePlan[#Headers],0))-INDEX(OfficeActual[],MATCH(INDEX(OfficeVariances[],ROW()-ROW(OfficeVariances[[#Headers],[מאי]]),1),INDEX(OfficePlan[],,1),0),MATCH(OfficeVariances[[#Headers],[מאי]],OfficeActual[#Headers],0)) -> ₪ 6.00 | H14: =INDEX(OfficePlan[],MATCH(INDEX(OfficeVariances[],ROW()-ROW(OfficeVariances[[#Headers],[יונ]]),1),INDEX(OfficePlan[],,1),0),MATCH(OfficeVariances[[#Headers],[יונ]],OfficePlan[#Headers],0))-INDEX(OfficeActual[],MATCH(INDEX(OfficeVariances[],ROW()-ROW(OfficeVariances[[#Headers],[יונ]]),1),INDEX(OfficePlan[],,1),0),MATCH(OfficeVariances[[#Headers],[יונ]],OfficeActual[#Headers],0)) -> ₪ 4.00 | I14: =INDEX(OfficePlan[],MATCH(INDEX(OfficeVariances[],ROW()-ROW(OfficeVariances[[#Headers],[יול]]),1),INDEX(OfficePlan[],,1),0),MATCH(OfficeVariances[[#Headers],[יול]],OfficePlan[#Headers],0))-INDEX(OfficeActual[],MATCH(INDEX(OfficeVariances[],ROW()-ROW(OfficeVariances[[#Headers],[יול]]),1),INDEX(OfficePlan[],,1),0),MATCH(OfficeVariances[[#Headers],[יול]],OfficeActual[#Headers],0)) -> ₪ 40.00 | J14: =INDEX(OfficePlan[],MATCH(INDEX(OfficeVariances[],ROW()-ROW(OfficeVariances[[#Headers],[אוג]]),1),INDEX(OfficePlan[],,1),0),MATCH(OfficeVariances[[#Headers],[אוג]],OfficePlan[#Headers],0))-INDEX(OfficeActual[],MATCH(INDEX(OfficeVariances[],ROW()-ROW(OfficeVariances[[#Headers],[אוג]]),1),INDEX(OfficePlan[],,1),0),MATCH(OfficeVariances[[#Headers],[אוג]],OfficeActual[#Headers],0)) -> ₪ 40.00 | K14: =INDEX(OfficePlan[],MATCH(INDEX(OfficeVariances[],ROW()-ROW(OfficeVariances[[#Headers],[ספט]]),1),INDEX(OfficePlan[],,1),0),MATCH(OfficeVariances[[#Headers],[ספט]],OfficePlan[#Headers],0))-INDEX(OfficeActual[],MATCH(INDEX(OfficeVariances[],ROW()-ROW(OfficeVariances[[#Headers],[ספט]]),1),INDEX(OfficePlan[],,1),0),MATCH(OfficeVariances[[#Headers],[ספט]],OfficeActual[#Headers],0)) -> ₪ 40.00 | L14: =INDEX(OfficePlan[],MATCH(INDEX(OfficeVariances[],ROW()-ROW(OfficeVariances[[#Headers],[אוק]]),1),INDEX(OfficePlan[],,1),0),MATCH(OfficeVariances[[#Headers],[אוק]],OfficePlan[#Headers],0))-INDEX(OfficeActual[],MATCH(INDEX(OfficeVariances[],ROW()-ROW(OfficeVariances[[#Headers],[אוק]]),1),INDEX(OfficePlan[],,1),0),MATCH(OfficeVariances[[#Headers],[אוק]],OfficeActual[#Headers],0)) -> ₪ 40.00 | M14: =INDEX(OfficePlan[],MATCH(INDEX(OfficeVariances[],ROW()-ROW(OfficeVariances[[#Headers],[נוב]]),1),INDEX(OfficePlan[],,1),0),MATCH(OfficeVariances[[#Headers],[נוב]],OfficePlan[#Headers],0))-INDEX(OfficeActual[],MATCH(INDEX(OfficeVariances[],ROW()-ROW(OfficeVariances[[#Headers],[נוב]]),1),INDEX(OfficePlan[],,1),0),MATCH(OfficeVariances[[#Headers],[נוב]],OfficeActual[#Headers],0)) -> ₪ 40.00 | N14: =INDEX(OfficePlan[],MATCH(INDEX(OfficeVariances[],ROW()-ROW(OfficeVariances[[#Headers],[דצמ]]),1),INDEX(OfficePlan[],,1),0),MATCH(OfficeVariances[[#Headers],[דצמ]],OfficePlan[#Headers],0))-INDEX(OfficeActual[],MATCH(INDEX(OfficeVariances[],ROW()-ROW(OfficeVariances[[#Headers],[דצמ]]),1),INDEX(OfficePlan[],,1),0),MATCH(OfficeVariances[[#Headers],[דצמ]],OfficeActual[#Headers],0)) -> ₪ 40.00 | O14: =SUM(OfficeVariances[[#This Row],[ינו]:[דצמ]]) -> ₪ 272.00
B15: טלפון | C15: =INDEX(OfficePlan[],MATCH(INDEX(OfficeVariances[],ROW()-ROW(OfficeVariances[[#Headers],[ינו]]),1),INDEX(OfficePlan[],,1),0),MATCH(OfficeVariances[[#Headers],[ינו]],OfficePlan[#Headers],0))-INDEX(OfficeActual[],MATCH(INDEX(OfficeVariances[],ROW()-ROW(OfficeVariances[[#Headers],[ינו]]),1),INDEX(OfficePlan[],,1),0),MATCH(OfficeVariances[[#Headers],[ינו]],OfficeActual[#Headers],0)) -> ₪ 26.00 | D15: =INDEX(OfficePlan[],MATCH(INDEX(OfficeVariances[],ROW()-ROW(OfficeVariances[[#Headers],[פבר]]),1),INDEX(OfficePlan[],,1),0),MATCH(OfficeVariances[[#Headers],[פבר]],OfficePlan[#Headers],0))-INDEX(OfficeActual[],MATCH(INDEX(OfficeVariances[],ROW()-ROW(OfficeVariances[[#Headers],[פבר]]),1),INDEX(OfficePlan[],,1),0),MATCH(OfficeVariances[[#Headers],[פבר]],OfficeActual[#Headers],0)) -> ₪ 15.00 | E15: =INDEX(OfficePlan[],MATCH(INDEX(OfficeVariances[],ROW()-ROW(OfficeVariances[[#Headers],[מרץ]]),1),INDEX(OfficePlan[],,1),0),MATCH(OfficeVariances[[#Headers],[מרץ]],OfficePlan[#Headers],0))-INDEX(OfficeActual[],MATCH(INDEX(OfficeVariances[],ROW()-ROW(OfficeVariances[[#Headers],[מרץ]]),1),INDEX(OfficePlan[],,1),0),MATCH(OfficeVariances[[#Headers],[מרץ]],OfficeActual[#Headers],0)) -> ₪ -15.00 | F15: =INDEX(OfficePlan[],MATCH(INDEX(OfficeVariances[],ROW()-ROW(OfficeVariances[[#Headers],[אפר]]),1),INDEX(OfficePlan[],,1),0),MATCH(OfficeVariances[[#Headers],[אפר]],OfficePlan[#Headers],0))-INDEX(OfficeActual[],MATCH(INDEX(OfficeVariances[],ROW()-ROW(OfficeVariances[[#Headers],[אפר]]),1),INDEX(OfficePlan[],,1),0),MATCH(OfficeVariances[[#Headers],[אפר]],OfficeActual[#Headers],0)) -> ₪ 5.00 | G15: =INDEX(OfficePlan[],MATCH(INDEX(OfficeVariances[],ROW()-ROW(OfficeVariances[[#Headers],[מאי]]),1),INDEX(OfficePlan[],,1),0),MATCH(OfficeVariances[[#Headers],[מאי]],OfficePlan[#Headers],0))-INDEX(OfficeActual[],MATCH(INDEX(OfficeVariances[],ROW()-ROW(OfficeVariances[[#Headers],[מאי]]),1),INDEX(OfficePlan[],,1),0),MATCH(OfficeVariances[[#Headers],[מאי]],OfficeActual[#Headers],0)) -> ₪ 5.00 | H15: =INDEX(OfficePlan[],MATCH(INDEX(OfficeVariances[],ROW()-ROW(OfficeVariances[[#Headers],[יונ]]),1),INDEX(OfficePlan[],,1),0),MATCH(OfficeVariances[[#Headers],[יונ]],OfficePlan[#Headers],0))-INDEX(OfficeActual[],MATCH(INDEX(OfficeVariances[],ROW()-ROW(OfficeVariances[[#Headers],[יונ]]),1),INDEX(OfficePlan[],,1),0),MATCH(OfficeVariances[[#Headers],[יונ]],OfficeActual[#Headers],0)) -> ₪ 30.00 | I15: =INDEX(OfficePlan[],MATCH(INDEX(OfficeVariances[],ROW()-ROW(OfficeVariances[[#Headers],[יול]]),1),INDEX(OfficePlan[],,1),0),MATCH(OfficeVariances[[#Headers],[יול]],OfficePlan[#Headers],0))-INDEX(OfficeActual[],MATCH(INDEX(OfficeVariances[],ROW()-ROW(OfficeVariances[[#Headers],[יול]]),1),INDEX(OfficePlan[],,1),0),MATCH(OfficeVariances[[#Headers],[יול]],OfficeActual[#Headers],0)) -> ₪ 250.00 | J15: =INDEX(OfficePlan[],MATCH(INDEX(OfficeVariances[],ROW()-ROW(OfficeVariances[[#Headers],[אוג]]),1),INDEX(OfficePlan[],,1),0),MATCH(OfficeVariances[[#Headers],[אוג]],OfficePlan[#Headers],0))-INDEX(OfficeActual[],MATCH(INDEX(OfficeVariances[],ROW()-ROW(OfficeVariances[[#Headers],[אוג]]),1),INDEX(OfficePlan[],,1),0),MATCH(OfficeVariances[[#Headers],[אוג]],OfficeActual[#Headers],0)) -> ₪ 250.00 | K15: =INDEX(OfficePlan[],MATCH(INDEX(OfficeVariances[],ROW()-ROW(OfficeVariances[[#Headers],[ספט]]),1),INDEX(OfficePlan[],,1),0),MATCH(OfficeVariances[[#Headers],[ספט]],OfficePlan[#Headers],0))-INDEX(OfficeActual[],MATCH(INDEX(OfficeVariances[],ROW()-ROW(OfficeVariances[[#Headers],[ספט]]),1),INDEX(OfficePlan[],,1),0),MATCH(OfficeVariances[[#Headers],[ספט]],OfficeActual[#Headers],0)) -> ₪ 250.00 | L15: =INDEX(OfficePlan[],MATCH(INDEX(OfficeVariances[],ROW()-ROW(OfficeVariances[[#Headers],[אוק]]),1),INDEX(OfficePlan[],,1),0),MATCH(OfficeVariances[[#Headers],[אוק]],OfficePlan[#Headers],0))-INDEX(OfficeActual[],MATCH(INDEX(OfficeVariances[],ROW()-ROW(OfficeVariances[[#Headers],[אוק]]),1),INDEX(OfficePlan[],,1),0),MATCH(OfficeVariances[[#Headers],[אוק]],OfficeActual[#Headers],0)) -> ₪ 250.00 | M15: =INDEX(OfficePlan[],MATCH(INDEX(OfficeVariances[],ROW()-ROW(OfficeVariances[[#Headers],[נוב]]),1),INDEX(OfficePlan[],,1),0),MATCH(OfficeVariances[[#Headers],[נוב]],OfficePlan[#Headers],0))-INDEX(OfficeActual[],MATCH(INDEX(OfficeVariances[],ROW()-ROW(OfficeVariances[[#Headers],[נוב]]),1),INDEX(OfficePlan[],,1),0),MATCH(OfficeVariances[[#Headers],[נוב]],OfficeActual[#Headers],0)) -> ₪ 250.00 | N15: =INDEX(OfficePlan[],MATCH(INDEX(OfficeVariances[],ROW()-ROW(OfficeVariances[[#Headers],[דצמ]]),1),INDEX(OfficePlan[],,1),0),MATCH(OfficeVariances[[#Headers],[דצמ]],OfficePlan[#Headers],0))-INDEX(OfficeActual[],MATCH(INDEX(OfficeVariances[],ROW()-ROW(OfficeVariances[[#Headers],[דצמ]]),1),INDEX(OfficePlan[],,1),0),MATCH(OfficeVariances[[#Headers],[דצמ]],OfficeActual[#Headers],0)) -> ₪ 250.00 | O15: =SUM(OfficeVariances[[#This Row],[ינו]:[דצמ]]) -> ₪ 1,566.00
B16: גישה לאינטרנט | C16: =INDEX(OfficePlan[],MATCH(INDEX(OfficeVariances[],ROW()-ROW(OfficeVariances[[#Headers],[ינו]]),1),INDEX(OfficePlan[],,1),0),MATCH(OfficeVariances[[#Headers],[ינו]],OfficePlan[#Headers],0))-INDEX(OfficeActual[],MATCH(INDEX(OfficeVariances[],ROW()-ROW(OfficeVariances[[#Headers],[ינו]]),1),INDEX(OfficePlan[],,1),0),MATCH(OfficeVariances[[#Headers],[ינו]],OfficeActual[#Headers],0)) -> ₪ 0.00 | D16: =INDEX(OfficePlan[],MATCH(INDEX(OfficeVariances[],ROW()-ROW(OfficeVariances[[#Headers],[פבר]]),1),INDEX(OfficePlan[],,1),0),MATCH(OfficeVariances[[#Headers],[פבר]],OfficePlan[#Headers],0))-INDEX(OfficeActual[],MATCH(INDEX(OfficeVariances[],ROW()-ROW(OfficeVariances[[#Headers],[פבר]]),1),INDEX(OfficePlan[],,1),0),MATCH(OfficeVariances[[#Headers],[פבר]],OfficeActual[#Headers],0)) -> ₪ 0.00 | E16: =INDEX(OfficePlan[],MATCH(INDEX(OfficeVariances[],ROW()-ROW(OfficeVariances[[#Headers],[מרץ]]),1),INDEX(OfficePlan[],,1),0),MATCH(OfficeVariances[[#Headers],[מרץ]],OfficePlan[#Headers],0))-INDEX(OfficeActual[],MATCH(INDEX(OfficeVariances[],ROW()-ROW(OfficeVariances[[#Headers],[מרץ]]),1),INDEX(OfficePlan[],,1),0),MATCH(OfficeVariances[[#Headers],[מרץ]],OfficeActual[#Headers],0)) -> ₪ 0.00 | F16: =INDEX(OfficePlan[],MATCH(INDEX(OfficeVariances[],ROW()-ROW(OfficeVariances[[#Headers],[אפר]]),1),INDEX(OfficePlan[],,1),0),MATCH(OfficeVariances[[#Headers],[אפר]],OfficePlan[#Headers],0))-INDEX(OfficeActual[],MATCH(INDEX(OfficeVariances[],ROW()-ROW(OfficeVariances[[#Headers],[אפר]]),1),INDEX(OfficePlan[],,1),0),MATCH(OfficeVariances[[#Headers],[אפר]],OfficeActual[#Headers],0)) -> ₪ 0.00 | G16: =INDEX(OfficePlan[],MATCH(INDEX(OfficeVariances[],ROW()-ROW(OfficeVariances[[#Headers],[מאי]]),1),INDEX(OfficePlan[],,1),0),MATCH(OfficeVariances[[#Headers],[מאי]],OfficePlan[#Headers],0))-INDEX(OfficeActual[],MATCH(INDEX(OfficeVariances[],ROW()-ROW(OfficeVariances[[#Headers],[מאי]]),1),INDEX(OfficePlan[],,1),0),MATCH(OfficeVariances[[#Headers],[מאי]],OfficeActual[#Headers],0)) -> ₪ 0.00 | H16: =INDEX(OfficePlan[],MATCH(INDEX(OfficeVariances[],ROW()-ROW(OfficeVariances[[#Headers],[יונ]]),1),INDEX(OfficePlan[],,1),0),MATCH(OfficeVariances[[#Headers],[יונ]],OfficePlan[#Headers],0))-INDEX(OfficeActual[],MATCH(INDEX(OfficeVariances[],ROW()-ROW(OfficeVariances[[#Headers],[יונ]]),1),INDEX(OfficePlan[],,1),0),MATCH(OfficeVariances[[#Headers],[יונ]],OfficeActual[#Headers],0)) -> ₪ 0.00 | I16: =INDEX(OfficePlan[],MATCH(INDEX(OfficeVariances[],ROW()-ROW(OfficeVariances[[#Headers],[יול]]),1),INDEX(OfficePlan[],,1),0),MATCH(OfficeVariances[[#Headers],[יול]],OfficePlan[#Headers],0))-INDEX(OfficeActual[],MATCH(INDEX(OfficeVariances[],ROW()-ROW(OfficeVariances[[#Headers],[יול]]),1),INDEX(OfficePlan[],,1),0),MATCH(OfficeVariances[[#Headers],[יול]],OfficeActual[#Headers],0)) -> ₪ 180.00 | J16: =INDEX(OfficePlan[],MATCH(INDEX(OfficeVariances[],ROW()-ROW(OfficeVariances[[#Headers],[אוג]]),1),INDEX(OfficePlan[],,1),0),MATCH(OfficeVariances[[#Headers],[אוג]],OfficePlan[#Headers],0))-INDEX(OfficeActual[],MATCH(INDEX(OfficeVariances[],ROW()-ROW(OfficeVariances[[#Headers],[אוג]]),1),INDEX(OfficePlan[],,1),0),MATCH(OfficeVariances[[#Headers],[אוג]],OfficeActual[#Headers],0)) -> ₪ 180.00 | K16: =INDEX(OfficePlan[],MATCH(INDEX(OfficeVariances[],ROW()-ROW(OfficeVariances[[#Headers],[ספט]]),1),INDEX(OfficePlan[],,1),0),MATCH(OfficeVariances[[#Headers],[ספט]],OfficePlan[#Headers],0))-INDEX(OfficeActual[],MATCH(INDEX(OfficeVariances[],ROW()-ROW(OfficeVariances[[#Headers],[ספט]]),1),INDEX(OfficePlan[],,1),0),MATCH(OfficeVariances[[#Headers],[ספט]],OfficeActual[#Headers],0)) -> ₪ 180.00 | L16: =INDEX(OfficePlan[],MATCH(INDEX(OfficeVariances[],ROW()-ROW(OfficeVariances[[#Headers],[אוק]]),1),INDEX(OfficePlan[],,1),0),MATCH(OfficeVariances[[#Headers],[אוק]],OfficePlan[#Headers],0))-INDEX(OfficeActual[],MATCH(INDEX(OfficeVariances[],ROW()-ROW(OfficeVariances[[#Headers],[אוק]]),1),INDEX(OfficePlan[],,1),0),MATCH(OfficeVariances[[#Headers],[אוק]],OfficeActual[#Headers],0)) -> ₪ 180.00 | M16: =INDEX(OfficePlan[],MATCH(INDEX(OfficeVariances[],ROW()-ROW(OfficeVariances[[#Headers],[נוב]]),1),INDEX(OfficePlan[],,1),0),MATCH(OfficeVariances[[#Headers],[נוב]],OfficePlan[#Headers],0))-INDEX(OfficeActual[],MATCH(INDEX(OfficeVariances[],ROW()-ROW(OfficeVariances[[#Headers],[נוב]]),1),INDEX(OfficePlan[],,1),0),MATCH(OfficeVariances[[#Headers],[נוב]],OfficeActual[#Headers],0)) -> ₪ 180.00 | N16: =INDEX(OfficePlan[],MATCH(INDEX(OfficeVariances[],ROW()-ROW(OfficeVariances[[#Headers],[דצמ]]),1),INDEX(OfficePlan[],,1),0),MATCH(OfficeVariances[[#Headers],[דצמ]],OfficePlan[#Headers],0))-INDEX(OfficeActual[],MATCH(INDEX(OfficeVariances[],ROW()-ROW(OfficeVariances[[#Headers],[דצמ]]),1),INDEX(OfficePlan[],,1),0),MATCH(OfficeVariances[[#Headers],[דצמ]],OfficeActual[#Headers],0)) -> ₪ 180.00 | O16: =SUM(OfficeVariances[[#This Row],[ינו]:[דצמ]]) -> ₪ 1,080.00
B17: ציוד משרדי | C17: =INDEX(OfficePlan[],MATCH(INDEX(OfficeVariances[],ROW()-ROW(OfficeVariances[[#Headers],[ינו]]),1),INDEX(OfficePlan[],,1),0),MATCH(OfficeVariances[[#Headers],[ינו]],OfficePlan[#Headers],0))-INDEX(OfficeActual[],MATCH(INDEX(OfficeVariances[],ROW()-ROW(OfficeVariances[[#Headers],[ינו]]),1),INDEX(OfficePlan[],,1),0),MATCH(OfficeVariances[[#Headers],[ינו]],OfficeActual[#Headers],0)) -> ₪ -56.00 | D17: =INDEX(OfficePlan[],MATCH(INDEX(OfficeVariances[],ROW()-ROW(OfficeVariances[[#Headers],[פבר]]),1),INDEX(OfficePlan[],,1),0),MATCH(OfficeVariances[[#Headers],[פבר]],OfficePlan[#Headers],0))-INDEX(OfficeActual[],MATCH(INDEX(OfficeVariances[],ROW()-ROW(OfficeVariances[[#Headers],[פבר]]),1),INDEX(OfficePlan[],,1),0),MATCH(OfficeVariances[[#Headers],[פבר]],OfficeActual[#Headers],0)) -> ₪ 58.00 | E17: =INDEX(OfficePlan[],MATCH(INDEX(OfficeVariances[],ROW()-ROW(OfficeVariances[[#Headers],[מרץ]]),1),INDEX(OfficePlan[],,1),0),MATCH(OfficeVariances[[#Headers],[מרץ]],OfficePlan[#Headers],0))-INDEX(OfficeActual[],MATCH(INDEX(OfficeVariances[],ROW()-ROW(OfficeVariances[[#Headers],[מרץ]]),1),INDEX(OfficePlan[],,1),0),MATCH(OfficeVariances[[#Headers],[מרץ]],OfficeActual[#Headers],0)) -> ₪ 40.00 | F17: =INDEX(OfficePlan[],MATCH(INDEX(OfficeVariances[],ROW()-ROW(OfficeVariances[[#Headers],[אפר]]),1),INDEX(OfficePlan[],,1),0),MATCH(OfficeVariances[[#Headers],[אפר]],OfficePlan[#Headers],0))-INDEX(OfficeActual[],MATCH(INDEX(OfficeVariances[],ROW()-ROW(OfficeVariances[[#Headers],[אפר]]),1),INDEX(OfficePlan[],,1),0),MATCH(OfficeVariances[[#Headers],[אפר]],OfficeActual[#Headers],0)) -> ₪ -21.00 | G17: =INDEX(OfficePlan[],MATCH(INDEX(OfficeVariances[],ROW()-ROW(OfficeVariances[[#Headers],[מאי]]),1),INDEX(OfficePlan[],,1),0),MATCH(OfficeVariances[[#Headers],[מאי]],OfficePlan[#Headers],0))-INDEX(OfficeActual[],MATCH(INDEX(OfficeVariances[],ROW()-ROW(OfficeVariances[[#Headers],[מאי]]),1),INDEX(OfficePlan[],,1),0),MATCH(OfficeVariances[[#Headers],[מאי]],OfficeActual[#Headers],0)) -> ₪ -56.00 | H17: =INDEX(OfficePlan[],MATCH(INDEX(OfficeVariances[],ROW()-ROW(OfficeVariances[[#Headers],[יונ]]),1),INDEX(OfficePlan[],,1),0),MATCH(OfficeVariances[[#Headers],[יונ]],OfficePlan[#Headers],0))-INDEX(OfficeActual[],MATCH(INDEX(OfficeVariances[],ROW()-ROW(OfficeVariances[[#Headers],[יונ]]),1),INDEX(OfficePlan[],,1),0),MATCH(OfficeVariances[[#Headers],[יונ]],OfficeActual[#Headers],0)) -> ₪ -40.00 | I17: =INDEX(OfficePlan[],MATCH(INDEX(OfficeVariances[],ROW()-ROW(OfficeVariances[[#Headers],[יול]]),1),INDEX(OfficePlan[],,1),0),MATCH(OfficeVariances[[#Headers],[יול]],OfficePlan[#Headers],0))-INDEX(OfficeActual[],MATCH(INDEX(OfficeVariances[],ROW()-ROW(OfficeVariances[[#Headers],[יול]]),1),INDEX(OfficePlan[],,1),0),MATCH(OfficeVariances[[#Headers],[יול]],OfficeActual[#Headers],0)) -> ₪ 200.00 | J17: =INDEX(OfficePlan[],MATCH(INDEX(OfficeVariances[],ROW()-ROW(OfficeVariances[[#Headers],[אוג]]),1),INDEX(OfficePlan[],,1),0),MATCH(OfficeVariances[[#Headers],[אוג]],OfficePlan[#Headers],0))-INDEX(OfficeActual[],MATCH(INDEX(OfficeVariances[],ROW()-ROW(OfficeVariances[[#Headers],[אוג]]),1),INDEX(OfficePlan[],,1),0),MATCH(OfficeVariances[[#Headers],[אוג]],OfficeActual[#Headers],0)) -> ₪ 200.00 | K17: =INDEX(OfficePlan[],MATCH(INDEX(OfficeVariances[],ROW()-ROW(OfficeVariances[[#Headers],[ספט]]),1),INDEX(OfficePlan[],,1),0),MATCH(OfficeVariances[[#Headers],[ספט]],OfficePlan[#Headers],0))-INDEX(OfficeActual[],MATCH(INDEX(OfficeVariances[],ROW()-ROW(OfficeVariances[[#Headers],[ספט]]),1),INDEX(OfficePlan[],,1),0),MATCH(OfficeVariances[[#Headers],[ספט]],OfficeActual[#Headers],0)) -> ₪ 200.00 | L17: =INDEX(OfficePlan[],MATCH(INDEX(OfficeVariances[],ROW()-ROW(OfficeVariances[[#Headers],[אוק]]),1),INDEX(OfficePlan[],,1),0),MATCH(OfficeVariances[[#Headers],[אוק]],OfficePlan[#Headers],0))-INDEX(OfficeActual[],MATCH(INDEX(OfficeVariances[],ROW()-ROW(OfficeVariances[[#Headers],[אוק]]),1),INDEX(OfficePlan[],,1),0),MATCH(OfficeVariances[[#Headers],[אוק]],OfficeActual[#Headers],0)) -> ₪ 200.00 | M17: =INDEX(OfficePlan[],MATCH(INDEX(OfficeVariances[],ROW()-ROW(OfficeVariances[[#Headers],[נוב]]),1),INDEX(OfficePlan[],,1),0),MATCH(OfficeVariances[[#Headers],[נוב]],OfficePlan[#Headers],0))-INDEX(OfficeActual[],MATCH(INDEX(OfficeVariances[],ROW()-ROW(OfficeVariances[[#Headers],[נוב]]),1),INDEX(OfficePlan[],,1),0),MATCH(OfficeVariances[[#Headers],[נוב]],OfficeActual[#Headers],0)) -> ₪ 200.00 | N17: =INDEX(OfficePlan[],MATCH(INDEX(OfficeVariances[],ROW()-ROW(OfficeVariances[[#Headers],[דצמ]]),1),INDEX(OfficePlan[],,1),0),MATCH(OfficeVariances[[#Headers],[דצמ]],OfficePlan[#Headers],0))-INDEX(OfficeActual[],MATCH(INDEX(OfficeVariances[],ROW()-ROW(OfficeVariances[[#Headers],[דצמ]]),1),INDEX(OfficePlan[],,1),0),MATCH(OfficeVariances[[#Headers],[דצמ]],OfficeActual[#Headers],0)) -> ₪ 200.00 | O17: =SUM(OfficeVariances[[#This Row],[ינו]:[דצמ]]) -> ₪ 1,125.00
B18: אבטחה | C18: =INDEX(OfficePlan[],MATCH(INDEX(OfficeVariances[],ROW()-ROW(OfficeVariances[[#Headers],[ינו]]),1),INDEX(OfficePlan[],,1),0),MATCH(OfficeVariances[[#Headers],[ינו]],OfficePlan[#Headers],0))-INDEX(OfficeActual[],MATCH(INDEX(OfficeVariances[],ROW()-ROW(OfficeVariances[[#Headers],[ינו]]),1),INDEX(OfficePlan[],,1),0),MATCH(OfficeVariances[[#Headers],[ינו]],OfficeActual[#Headers],0)) -> ₪ 0.00 | D18: =INDEX(OfficePlan[],MATCH(INDEX(OfficeVariances[],ROW()-ROW(OfficeVariances[[#Headers],[פבר]]),1),INDEX(OfficePlan[],,1),0),MATCH(OfficeVariances[[#Headers],[פבר]],OfficePlan[#Headers],0))-INDEX(OfficeActual[],MATCH(INDEX(OfficeVariances[],ROW()-ROW(OfficeVariances[[#Headers],[פבר]]),1),INDEX(OfficePlan[],,1),0),MATCH(OfficeVariances[[#Headers],[פבר]],OfficeActual[#Headers],0)) -> ₪ 0.00 | E18: =INDEX(OfficePlan[],MATCH(INDEX(OfficeVariances[],ROW()-ROW(OfficeVariances[[#Headers],[מרץ]]),1),INDEX(OfficePlan[],,1),0),MATCH(OfficeVariances[[#Headers],[מרץ]],OfficePlan[#Headers],0))-INDEX(OfficeActual[],MATCH(INDEX(OfficeVariances[],ROW()-ROW(OfficeVariances[[#Headers],[מרץ]]),1),INDEX(OfficePlan[],,1),0),MATCH(OfficeVariances[[#Headers],[מרץ]],OfficeActual[#Headers],0)) -> ₪ 0.00 | F18: =INDEX(OfficePlan[],MATCH(INDEX(OfficeVariances[],ROW()-ROW(OfficeVariances[[#Headers],[אפר]]),1),INDEX(OfficePlan[],,1),0),MATCH(OfficeVariances[[#Headers],[אפר]],OfficePlan[#Headers],0))-INDEX(OfficeActual[],MATCH(INDEX(OfficeVariances[],ROW()-ROW(OfficeVariances[[#Headers],[אפר]]),1),INDEX(OfficePlan[],,1),0),MATCH(OfficeVariances[[#Headers],[אפר]],OfficeActual[#Headers],0)) -> ₪ 0.00 | G18: =INDEX(OfficePlan[],MATCH(INDEX(OfficeVariances[],ROW()-ROW(OfficeVariances[[#Headers],[מאי]]),1),INDEX(OfficePlan[],,1),0),MATCH(OfficeVariances[[#Headers],[מאי]],OfficePlan[#Headers],0))-INDEX(OfficeActual[],MATCH(INDEX(OfficeVariances[],ROW()-ROW(OfficeVariances[[#Headers],[מאי]]),1),INDEX(OfficePlan[],,1),0),MATCH(OfficeVariances[[#Headers],[מאי]],OfficeActual[#Headers],0)) -> ₪ 0.00 | H18: =INDEX(OfficePlan[],MATCH(INDEX(OfficeVariances[],ROW()-ROW(OfficeVariances[[#Headers],[יונ]]),1),INDEX(OfficePlan[],,1),0),MATCH(OfficeVariances[[#Headers],[יונ]],OfficePlan[#Headers],0))-INDEX(OfficeActual[],MATCH(INDEX(OfficeVariances[],ROW()-ROW(OfficeVariances[[#Headers],[יונ]]),1),INDEX(OfficePlan[],,1),0),MATCH(OfficeVariances[[#Headers],[יונ]],OfficeActual[#Headers],0)) -> ₪ 0.00 | I18: =INDEX(OfficePlan[],MATCH(INDEX(OfficeVariances[],ROW()-ROW(OfficeVariances[[#Headers],[יול]]),1),INDEX(OfficePlan[],,1),0),MATCH(OfficeVariances[[#Headers],[יול]],OfficePlan[#Headers],0))-INDEX(OfficeActual[],MATCH(INDEX(OfficeVariances[],ROW()-ROW(OfficeVariances[[#Headers],[יול]]),1),INDEX(OfficePlan[],,1),0),MATCH(OfficeVariances[[#Headers],[יול]],OfficeActual[#Headers],0)) -> ₪ 600.00 | J18: =INDEX(OfficePlan[],MATCH(INDEX(OfficeVariances[],ROW()-ROW(OfficeVariances[[#Headers],[אוג]]),1),INDEX(OfficePlan[],,1),0),MATCH(OfficeVariances[[#Headers],[אוג]],OfficePlan[#Headers],0))-INDEX(OfficeActual[],MATCH(INDEX(OfficeVariances[],ROW()-ROW(OfficeVariances[[#Headers],[אוג]]),1),INDEX(OfficePlan[],,1),0),MATCH(OfficeVariances[[#Headers],[אוג]],OfficeActual[#Headers],0)) -> ₪ 600.00 | K18: =INDEX(OfficePlan[],MATCH(INDEX(OfficeVariances[],ROW()-ROW(OfficeVariances[[#Headers],[ספט]]),1),INDEX(OfficePlan[],,1),0),MATCH(OfficeVariances[[#Headers],[ספט]],OfficePlan[#Headers],0))-INDEX(OfficeActual[],MATCH(INDEX(OfficeVariances[],ROW()-ROW(OfficeVariances[[#Headers],[ספט]]),1),INDEX(OfficePlan[],,1),0),MATCH(OfficeVariances[[#Headers],[ספט]],OfficeActual[#Headers],0)) -> ₪ 600.00 | L18: =INDEX(OfficePlan[],MATCH(INDEX(OfficeVariances[],ROW()-ROW(OfficeVariances[[#Headers],[אוק]]),1),INDEX(OfficePlan[],,1),0),MATCH(OfficeVariances[[#Headers],[אוק]],OfficePlan[#Headers],0))-INDEX(OfficeActual[],MATCH(INDEX(OfficeVariances[],ROW()-ROW(OfficeVariances[[#Headers],[אוק]]),1),INDEX(OfficePlan[],,1),0),MATCH(OfficeVariances[[#Headers],[אוק]],OfficeActual[#Headers],0)) -> ₪ 600.00 | M18: =INDEX(OfficePlan[],MATCH(INDEX(OfficeVariances[],ROW()-ROW(OfficeVariances[[#Headers],[נוב]]),1),INDEX(OfficePlan[],,1),0),MATCH(OfficeVariances[[#Headers],[נוב]],OfficePlan[#Headers],0))-INDEX(OfficeActual[],MATCH(INDEX(OfficeVariances[],ROW()-ROW(OfficeVariances[[#Headers],[נוב]]),1),INDEX(OfficePlan[],,1),0),MATCH(OfficeVariances[[#Headers],[נוב]],OfficeActual[#Headers],0)) -> ₪ 600.00 | N18: =INDEX(OfficePlan[],MATCH(INDEX(OfficeVariances[],ROW()-ROW(OfficeVariances[[#Headers],[דצמ]]),1),INDEX(OfficePlan[],,1),0),MATCH(OfficeVariances[[#Headers],[דצמ]],OfficePlan[#Headers],0))-INDEX(OfficeActual[],MATCH(INDEX(OfficeVariances[],ROW()-ROW(OfficeVariances[[#Headers],[דצמ]]),1),INDEX(OfficePlan[],,1),0),MATCH(OfficeVariances[[#Headers],[דצמ]],OfficeActual[#Headers],0)) -> ₪ 600.00 | O18: =SUM(OfficeVariances[[#This Row],[ינו]:[דצמ]]) -> ₪ 3,600.00
B19: סכום ביניים | C19: =SUBTOTAL(109,OfficeVariances[ינו]) -> ₪ -17.00 | D19: =SUBTOTAL(109,OfficeVariances[פבר]) -> ₪ 72.00 | E19: =SUBTOTAL(109,OfficeVariances[מרץ]) -> ₪ 78.00 | F19: =SUBTOTAL(109,OfficeVariances[אפר]) -> ₪ -141.00 | G19: =SUBTOTAL(109,OfficeVariances[מאי]) -> ₪ -38.00 | H19: =SUBTOTAL(109,OfficeVariances[יונ]) -> ₪ 16.00 | I19: =SUBTOTAL(109,OfficeVariances[יול]) -> ₪ 11,470.00 | J19: =SUBTOTAL(109,OfficeVariances[אוג]) -> ₪ 11,470.00 | K19: =SUBTOTAL(109,OfficeVariances[ספט]) -> ₪ 11,470.00 | L19: =SUBTOTAL(109,OfficeVariances[אוק]) -> ₪ 11,470.00 | M19: =SUBTOTAL(109,OfficeVariances[נוב]) -> ₪ 11,770.00 | N19: =SUBTOTAL(109,OfficeVariances[דצמ]) -> ₪ 11,770.00 | O19: =SUBTOTAL(109,OfficeVariances[שנה]) -> ₪ 69,390.00
B21: עלויות שיווק | C21: ינו | D21: פבר | E21: מרץ | F21: אפר | G21: מאי | H21: יונ | I21: יול | J21: אוג | K21: ספט | L21: אוק | M21: נוב | N21: דצמ | O21: שנה
B22: אירוח אתר אינטרנט | C22: =INDEX(MarketingPlan[],MATCH(INDEX(MarketingVariances[],ROW()-ROW(MarketingVariances[[#Headers],[ינו]]),1),INDEX(MarketingPlan[],,1),0),MATCH(MarketingVariances[[#Headers],[ינו]],MarketingPlan[#Headers],0))-INDEX(MarketingActual[],MATCH(INDEX(MarketingVariances[],ROW()-ROW(MarketingVariances[[#Headers],[ינו]]),1),INDEX(MarketingPlan[],,1),0),MATCH(MarketingVariances[[#Headers],[ינו]],MarketingActual[#Headers],0)) -> ₪ 0.00 | D22: =INDEX(MarketingPlan[],MATCH(INDEX(MarketingVariances[],ROW()-ROW(MarketingVariances[[#Headers],[פבר]]),1),INDEX(MarketingPlan[],,1),0),MATCH(MarketingVariances[[#Headers],[פבר]],MarketingPlan[#Headers],0))-INDEX(MarketingActual[],MATCH(INDEX(MarketingVariances[],ROW()-ROW(MarketingVariances[[#Headers],[פבר]]),1),INDEX(MarketingPlan[],,1),0),MATCH(MarketingVariances[[#Headers],[פבר]],MarketingActual[#Headers],0)) -> ₪ 0.00 | E22: =INDEX(MarketingPlan[],MATCH(INDEX(MarketingVariances[],ROW()-ROW(MarketingVariances[[#Headers],[מרץ]]),1),INDEX(MarketingPlan[],,1),0),MATCH(MarketingVariances[[#Headers],[מרץ]],MarketingPlan[#Headers],0))-INDEX(MarketingActual[],MATCH(INDEX(MarketingVariances[],ROW()-ROW(MarketingVariances[[#Headers],[מרץ]]),1),INDEX(MarketingPlan[],,1),0),MATCH(MarketingVariances[[#Headers],[מרץ]],MarketingActual[#Headers],0)) -> ₪ 0.00 | F22: =INDEX(MarketingPlan[],MATCH(INDEX(MarketingVariances[],ROW()-ROW(MarketingVariances[[#Headers],[אפר]]),1),INDEX(MarketingPlan[],,1),0),MATCH(MarketingVariances[[#Headers],[אפר]],MarketingPlan[#Headers],0))-INDEX(MarketingActual[],MATCH(INDEX(MarketingVariances[],ROW()-ROW(MarketingVariances[[#Headers],[אפר]]),1),INDEX(MarketingPlan[],,1),0),MATCH(MarketingVariances[[#Headers],[אפר]],MarketingActual[#Headers],0)) -> ₪ 0.00 | G22: =INDEX(MarketingPlan[],MATCH(INDEX(MarketingVariances[],ROW()-ROW(MarketingVariances[[#Headers],[מאי]]),1),INDEX(MarketingPlan[],,1),0),MATCH(MarketingVariances[[#Headers],[מאי]],MarketingPlan[#Headers],0))-INDEX(MarketingActual[],MATCH(INDEX(MarketingVariances[],ROW()-ROW(MarketingVariances[[#Headers],[מאי]]),1),INDEX(MarketingPlan[],,1),0),MATCH(MarketingVariances[[#Headers],[מאי]],MarketingActual[#Headers],0)) -> ₪ 0.00 | H22: =INDEX(MarketingPlan[],MATCH(INDEX(MarketingVariances[],ROW()-ROW(MarketingVariances[[#Headers],[יונ]]),1),INDEX(MarketingPlan[],,1),0),MATCH(MarketingVariances[[#Headers],[יונ]],MarketingPlan[#Headers],0))-INDEX(MarketingActual[],MATCH(INDEX(MarketingVariances[],ROW()-ROW(MarketingVariances[[#Headers],[יונ]]),1),INDEX(MarketingPlan[],,1),0),MATCH(MarketingVariances[[#Headers],[יונ]],MarketingActual[#Headers],0)) -> ₪ 0.00 | I22: =INDEX(MarketingPlan[],MATCH(INDEX(MarketingVariances[],ROW()-ROW(MarketingVariances[[#Headers],[יול]]),1),INDEX(MarketingPlan[],,1),0),MATCH(MarketingVariances[[#Headers],[יול]],MarketingPlan[#Headers],0))-INDEX(MarketingActual[],MATCH(INDEX(MarketingVariances[],ROW()-ROW(MarketingVariances[[#Headers],[יול]]),1),INDEX(MarketingPlan[],,1),0),MATCH(MarketingVariances[[#Headers],[יול]],MarketingActual[#Headers],0)) -> ₪ 500.00 | J22: =INDEX(MarketingPlan[],MATCH(INDEX(MarketingVariances[],ROW()-ROW(MarketingVariances[[#Headers],[אוג]]),1),INDEX(MarketingPlan[],,1),0),MATCH(MarketingVariances[[#Headers],[אוג]],MarketingPlan[#Headers],0))-INDEX(MarketingActual[],MATCH(INDEX(MarketingVariances[],ROW()-ROW(MarketingVariances[[#Headers],[אוג]]),1),INDEX(MarketingPlan[],,1),0),MATCH(MarketingVariances[[#Headers],[אוג]],MarketingActual[#Headers],0)) -> ₪ 500.00 | K22: =INDEX(MarketingPlan[],MATCH(INDEX(MarketingVariances[],ROW()-ROW(MarketingVariances[[#Headers],[ספט]]),1),INDEX(MarketingPlan[],,1),0),MATCH(MarketingVariances[[#Headers],[ספט]],MarketingPlan[#Headers],0))-INDEX(MarketingActual[],MATCH(INDEX(MarketingVariances[],ROW()-ROW(MarketingVariances[[#Headers],[ספט]]),1),INDEX(MarketingPlan[],,1),0),MATCH(MarketingVariances[[#Headers],[ספט]],MarketingActual[#Headers],0)) -> ₪ 500.00 | L22: =INDEX(MarketingPlan[],MATCH(INDEX(MarketingVariances[],ROW()-ROW(MarketingVariances[[#Headers],[אוק]]),1),INDEX(MarketingPlan[],,1),0),MATCH(MarketingVariances[[#Headers],[אוק]],MarketingPlan[#Headers],0))-INDEX(MarketingActual[],MATCH(INDEX(MarketingVariances[],ROW()-ROW(MarketingVariances[[#Headers],[אוק]]),1),INDEX(MarketingPlan[],,1),0),MATCH(MarketingVariances[[#Headers],[אוק]],MarketingActual[#Headers],0)) -> ₪ 500.00 | M22: =INDEX(MarketingPlan[],MATCH(INDEX(MarketingVariances[],ROW()-ROW(MarketingVariances[[#Headers],[נוב]]),1),INDEX(MarketingPlan[],,1),0),MATCH(MarketingVariances[[#Headers],[נוב]],MarketingPlan[#Headers],0))-INDEX(MarketingActual[],MATCH(INDEX(MarketingVariances[],ROW()-ROW(MarketingVariances[[#Headers],[נוב]]),1),INDEX(MarketingPlan[],,1),0),MATCH(MarketingVariances[[#Headers],[נוב]],MarketingActual[#Headers],0)) -> ₪ 500.00 | N22: =INDEX(MarketingPlan[],MATCH(INDEX(MarketingVariances[],ROW()-ROW(MarketingVariances[[#Headers],[דצמ]]),1),INDEX(MarketingPlan[],,1),0),MATCH(MarketingVariances[[#Headers],[דצמ]],MarketingPlan[#Headers],0))-INDEX(MarketingActual[],MATCH(INDEX(MarketingVariances[],ROW()-ROW(MarketingVariances[[#Headers],[דצמ]]),1),INDEX(MarketingPlan[],,1),0),MATCH(MarketingVariances[[#Headers],[דצמ]],MarketingActual[#Headers],0)) -> ₪ 500.00 | O22: =SUM(MarketingVariances[[#This Row],[ינו]:[דצמ]]) -> ₪ 3,000.00
B23: עדכוני אתר אינטרנט | C23: =INDEX(MarketingPlan[],MATCH(INDEX(MarketingVariances[],ROW()-ROW(MarketingVariances[[#Headers],[ינו]]),1),INDEX(MarketingPlan[],,1),0),MATCH(MarketingVariances[[#Headers],[ינו]],MarketingPlan[#Headers],0))-INDEX(MarketingActual[],MATCH(INDEX(MarketingVariances[],ROW()-ROW(MarketingVariances[[#Headers],[ינו]]),1),INDEX(MarketingPlan[],,1),0),MATCH(MarketingVariances[[#Headers],[ינו]],MarketingActual[#Headers],0)) -> ₪ 0.00 | D23: =INDEX(MarketingPlan[],MATCH(INDEX(MarketingVariances[],ROW()-ROW(MarketingVariances[[#Headers],[פבר]]),1),INDEX(MarketingPlan[],,1),0),MATCH(MarketingVariances[[#Headers],[פבר]],MarketingPlan[#Headers],0))-INDEX(MarketingActual[],MATCH(INDEX(MarketingVariances[],ROW()-ROW(MarketingVariances[[#Headers],[פבר]]),1),INDEX(MarketingPlan[],,1),0),MATCH(MarketingVariances[[#Headers],[פבר]],MarketingActual[#Headers],0)) -> ₪ 0.00 | E23: =INDEX(MarketingPlan[],MATCH(INDEX(MarketingVariances[],ROW()-ROW(MarketingVariances[[#Headers],[מרץ]]),1),INDEX(MarketingPlan[],,1),0),MATCH(MarketingVariances[[#Headers],[מרץ]],MarketingPlan[#Headers],0))-INDEX(MarketingActual[],MATCH(INDEX(MarketingVariances[],ROW()-ROW(MarketingVariances[[#Headers],[מרץ]]),1),INDEX(MarketingPlan[],,1),0),MATCH(MarketingVariances[[#Headers],[מרץ]],MarketingActual[#Headers],0)) -> ₪ 0.00 | F23: =INDEX(MarketingPlan[],MATCH(INDEX(MarketingVariances[],ROW()-ROW(MarketingVariances[[#Headers],[אפר]]),1),INDEX(MarketingPlan[],,1),0),MATCH(MarketingVariances[[#Headers],[אפר]],MarketingPlan[#Headers],0))-INDEX(MarketingActual[],MATCH(INDEX(MarketingVariances[],ROW()-ROW(MarketingVariances[[#Headers],[אפר]]),1),INDEX(MarketingPlan[],,1),0),MATCH(MarketingVariances[[#Headers],[אפר]],MarketingActual[#Headers],0)) -> ₪ 0.00 | G23: =INDEX(MarketingPlan[],MATCH(INDEX(MarketingVariances[],ROW()-ROW(MarketingVariances[[#Headers],[מאי]]),1),INDEX(MarketingPlan[],,1),0),MATCH(MarketingVariances[[#Headers],[מאי]],MarketingPlan[#Headers],0))-INDEX(MarketingActual[],MATCH(INDEX(MarketingVariances[],ROW()-ROW(MarketingVariances[[#Headers],[מאי]]),1),INDEX(MarketingPlan[],,1),0),MATCH(MarketingVariances[[#Headers],[מאי]],MarketingActual[#Headers],0)) -> ₪ 0.00 | H23: =INDEX(MarketingPlan[],MATCH(INDEX(MarketingVariances[],ROW()-ROW(MarketingVariances[[#Headers],[יונ]]),1),INDEX(MarketingPlan[],,1),0),MATCH(MarketingVariances[[#Headers],[יונ]],MarketingPlan[#Headers],0))-INDEX(MarketingActual[],MATCH(INDEX(MarketingVariances[],ROW()-ROW(MarketingVariances[[#Headers],[יונ]]),1),INDEX(MarketingPlan[],,1),0),MATCH(MarketingVariances[[#Headers],[יונ]],MarketingActual[#Headers],0)) -> ₪ -500.00 | I23: =INDEX(MarketingPlan[],MATCH(INDEX(MarketingVariances[],ROW()-ROW(MarketingVariances[[#Headers],[יול]]),1),INDEX(MarketingPlan[],,1),0),MATCH(MarketingVariances[[#Headers],[יול]],MarketingPlan[#Headers],0))-INDEX(MarketingActual[],MATCH(INDEX(MarketingVariances[],ROW()-ROW(MarketingVariances[[#Headers],[יול]]),1),INDEX(MarketingPlan[],,1),0),MATCH(MarketingVariances[[#Headers],[יול]],MarketingActual[#Headers],0)) -> ₪ 200.00 | J23: =INDEX(MarketingPlan[],MATCH(INDEX(MarketingVariances[],ROW()-ROW(MarketingVariances[[#Headers],[אוג]]),1),INDEX(MarketingPlan[],,1),0),MATCH(MarketingVariances[[#Headers],[אוג]],MarketingPlan[#Headers],0))-INDEX(MarketingActual[],MATCH(INDEX(MarketingVariances[],ROW()-ROW(MarketingVariances[[#Headers],[אוג]]),1),INDEX(MarketingPlan[],,1),0),MATCH(MarketingVariances[[#Headers],[אוג]],MarketingActual[#Headers],0)) -> ₪ 200.00 | K23: =INDEX(MarketingPlan[],MATCH(INDEX(MarketingVariances[],ROW()-ROW(MarketingVariances[[#Headers],[ספט]]),1),INDEX(MarketingPlan[],,1),0),MATCH(MarketingVariances[[#Headers],[ספט]],MarketingPlan[#Headers],0))-INDEX(MarketingActual[],MATCH(INDEX(MarketingVariances[],ROW()-ROW(MarketingVariances[[#Headers],[ספט]]),1),INDEX(MarketingPlan[],,1),0),MATCH(MarketingVariances[[#Headers],[ספט]],MarketingActual[#Headers],0)) -> ₪ 200.00 | L23: =INDEX(MarketingPlan[],MATCH(INDEX(MarketingVariances[],ROW()-ROW(MarketingVariances[[#Headers],[אוק]]),1),INDEX(MarketingPlan[],,1),0),MATCH(MarketingVariances[[#Headers],[אוק]],MarketingPlan[#Headers],0))-INDEX(MarketingActual[],MATCH(INDEX(MarketingVariances[],ROW()-ROW(MarketingVariances[[#Headers],[אוק]]),1),INDEX(MarketingPlan[],,1),0),MATCH(MarketingVariances[[#Headers],[אוק]],MarketingActual[#Headers],0)) -> ₪ 200.00 | M23: =INDEX(MarketingPlan[],MATCH(INDEX(MarketingVariances[],ROW()-ROW(MarketingVariances[[#Headers],[נוב]]),1),INDEX(MarketingPlan[],,1),0),MATCH(MarketingVariances[[#Headers],[נוב]],MarketingPlan[#Headers],0))-INDEX(MarketingActual[],MATCH(INDEX(MarketingVariances[],ROW()-ROW(MarketingVariances[[#Headers],[נוב]]),1),INDEX(MarketingPlan[],,1),0),MATCH(MarketingVariances[[#Headers],[נוב]],MarketingActual[#Headers],0)) -> ₪ 200.00 | N23: =INDEX(MarketingPlan[],MATCH(INDEX(MarketingVariances[],ROW()-ROW(MarketingVariances[[#Headers],[דצמ]]),1),INDEX(MarketingPlan[],,1),0),MATCH(MarketingVariances[[#Headers],[דצמ]],MarketingPlan[#Headers],0))-INDEX(MarketingActual[],MATCH(INDEX(MarketingVariances[],ROW()-ROW(MarketingVariances[[#Headers],[דצמ]]),1),INDEX(MarketingPlan[],,1),0),MATCH(MarketingVariances[[#Headers],[דצמ]],MarketingActual[#Headers],0)) -> ₪ 1,000.00 | O23: =SUM(MarketingVariances[[#This Row],[ינו]:[דצמ]]) -> ₪ 1,500.00
B24: הכנת חומרי שיווק | C24: =INDEX(MarketingPlan[],MATCH(INDEX(MarketingVariances[],ROW()-ROW(MarketingVariances[[#Headers],[ינו]]),1),INDEX(MarketingPlan[],,1),0),MATCH(MarketingVariances[[#Headers],[ינו]],MarketingPlan[#Headers],0))-INDEX(MarketingActual[],MATCH(INDEX(MarketingVariances[],ROW()-ROW(MarketingVariances[[#Headers],[ינו]]),1),INDEX(MarketingPlan[],,1),0),MATCH(MarketingVariances[[#Headers],[ינו]],MarketingActual[#Headers],0)) -> ₪ 200.00 | D24: =INDEX(MarketingPlan[],MATCH(INDEX(MarketingVariances[],ROW()-ROW(MarketingVariances[[#Headers],[פבר]]),1),INDEX(MarketingPlan[],,1),0),MATCH(MarketingVariances[[#Headers],[פבר]],MarketingPlan[#Headers],0))-INDEX(MarketingActual[],MATCH(INDEX(MarketingVariances[],ROW()-ROW(MarketingVariances[[#Headers],[פבר]]),1),INDEX(MarketingPlan[],,1),0),MATCH(MarketingVariances[[#Headers],[פבר]],MarketingActual[#Headers],0)) -> ₪ 0.00 | E24: =INDEX(MarketingPlan[],MATCH(INDEX(MarketingVariances[],ROW()-ROW(MarketingVariances[[#Headers],[מרץ]]),1),INDEX(MarketingPlan[],,1),0),MATCH(MarketingVariances[[#Headers],[מרץ]],MarketingPlan[#Headers],0))-INDEX(MarketingActual[],MATCH(INDEX(MarketingVariances[],ROW()-ROW(MarketingVariances[[#Headers],[מרץ]]),1),INDEX(MarketingPlan[],,1),0),MATCH(MarketingVariances[[#Headers],[מרץ]],MarketingActual[#Headers],0)) -> ₪ 0.00 | F24: =INDEX(MarketingPlan[],MATCH(INDEX(MarketingVariances[],ROW()-ROW(MarketingVariances[[#Headers],[אפר]]),1),INDEX(MarketingPlan[],,1),0),MATCH(MarketingVariances[[#Headers],[אפר]],MarketingPlan[#Headers],0))-INDEX(MarketingActual[],MATCH(INDEX(MarketingVariances[],ROW()-ROW(MarketingVariances[[#Headers],[אפר]]),1),INDEX(MarketingPlan[],,1),0),MATCH(MarketingVariances[[#Headers],[אפר]],MarketingActual[#Headers],0)) -> ₪ -500.00 | G24: =INDEX(MarketingPlan[],MATCH(INDEX(MarketingVariances[],ROW()-ROW(MarketingVariances[[#Headers],[מאי]]),1),INDEX(MarketingPlan[],,1),0),MATCH(MarketingVariances[[#Headers],[מאי]],MarketingPlan[#Headers],0))-INDEX(MarketingActual[],MATCH(INDEX(MarketingVariances[],ROW()-ROW(MarketingVariances[[#Headers],[מאי]]),1),INDEX(MarketingPlan[],,1),0),MATCH(MarketingVariances[[#Headers],[מאי]],MarketingActual[#Headers],0)) -> ₪ 0.00 | H24: =INDEX(MarketingPlan[],MATCH(INDEX(MarketingVariances[],ROW()-ROW(MarketingVariances[[#Headers],[יונ]]),1),INDEX(MarketingPlan[],,1),0),MATCH(MarketingVariances[[#Headers],[יונ]],MarketingPlan[#Headers],0))-INDEX(MarketingActual[],MATCH(INDEX(MarketingVariances[],ROW()-ROW(MarketingVariances[[#Headers],[יונ]]),1),INDEX(MarketingPlan[],,1),0),MATCH(MarketingVariances[[#Headers],[יונ]],MarketingActual[#Headers],0)) -> ₪ 0.00 | I24: =INDEX(MarketingPlan[],MATCH(INDEX(MarketingVariances[],ROW()-ROW(MarketingVariances[[#Headers],[יול]]),1),INDEX(MarketingPlan[],,1),0),MATCH(MarketingVariances[[#Headers],[יול]],MarketingPlan[#Headers],0))-INDEX(MarketingActual[],MATCH(INDEX(MarketingVariances[],ROW()-ROW(MarketingVariances[[#Headers],[יול]]),1),INDEX(MarketingPlan[],,1),0),MATCH(MarketingVariances[[#Headers],[יול]],MarketingActual[#Headers],0)) -> ₪ 5,000.00 | J24: =INDEX(MarketingPlan[],MATCH(INDEX(MarketingVariances[],ROW()-ROW(MarketingVariances[[#Headers],[אוג]]),1),INDEX(MarketingPlan[],,1),0),MATCH(MarketingVariances[[#Headers],[אוג]],MarketingPlan[#Headers],0))-INDEX(MarketingActual[],MATCH(INDEX(MarketingVariances[],ROW()-ROW(MarketingVariances[[#Headers],[אוג]]),1),INDEX(MarketingPlan[],,1),0),MATCH(MarketingVariances[[#Headers],[אוג]],MarketingActual[#Headers],0)) -> ₪ 0.00 | K24: =INDEX(MarketingPlan[],MATCH(INDEX(MarketingVariances[],ROW()-ROW(MarketingVariances[[#Headers],[ספט]]),1),INDEX(MarketingPlan[],,1),0),MATCH(MarketingVariances[[#Headers],[ספט]],MarketingPlan[#Headers],0))-INDEX(MarketingActual[],MATCH(INDEX(MarketingVariances[],ROW()-ROW(MarketingVariances[[#Headers],[ספט]]),1),INDEX(MarketingPlan[],,1),0),MATCH(MarketingVariances[[#Headers],[ספט]],MarketingActual[#Headers],0)) -> ₪ 0.00 | L24: =INDEX(MarketingPlan[],MATCH(INDEX(MarketingVariances[],ROW()-ROW(MarketingVariances[[#Headers],[אוק]]),1),INDEX(MarketingPlan[],,1),0),MATCH(MarketingVariances[[#Headers],[אוק]],MarketingPlan[#Headers],0))-INDEX(MarketingActual[],MATCH(INDEX(MarketingVariances[],ROW()-ROW(MarketingVariances[[#Headers],[אוק]]),1),INDEX(MarketingPlan[],,1),0),MATCH(MarketingVariances[[#Headers],[אוק]],MarketingActual[#Headers],0)) -> ₪ 5,000.00 | M24: =INDEX(MarketingPlan[],MATCH(INDEX(MarketingVariances[],ROW()-ROW(MarketingVariances[[#Headers],[נוב]]),1),INDEX(MarketingPlan[],,1),0),MATCH(MarketingVariances[[#Headers],[נוב]],MarketingPlan[#Headers],0))-INDEX(MarketingActual[],MATCH(INDEX(MarketingVariances[],ROW()-ROW(MarketingVariances[[#Headers],[נוב]]),1),INDEX(MarketingPlan[],,1),0),MATCH(MarketingVariances[[#Headers],[נוב]],MarketingActual[#Headers],0)) -> ₪ 0.00 | N24: =INDEX(MarketingPlan[],MATCH(INDEX(MarketingVariances[],ROW()-ROW(MarketingVariances[[#Headers],[דצמ]]),1),INDEX(MarketingPlan[],,1),0),MATCH(MarketingVariances[[#Headers],[דצמ]],MarketingPlan[#Headers],0))-INDEX(MarketingActual[],MATCH(INDEX(MarketingVariances[],ROW()-ROW(MarketingVariances[[#Headers],[דצמ]]),1),INDEX(MarketingPlan[],,1),0),MATCH(MarketingVariances[[#Headers],[דצמ]],MarketingActual[#Headers],0)) -> ₪ 0.00 | O24: =SUM(MarketingVariances[[#This Row],[ינו]:[דצמ]]) -> ₪ 9,700.00
B25: הדפסת חומרי שיווק | C25: =INDEX(MarketingPlan[],MATCH(INDEX(MarketingVariances[],ROW()-ROW(MarketingVariances[[#Headers],[ינו]]),1),INDEX(MarketingPlan[],,1),0),MATCH(MarketingVariances[[#Headers],[ינו]],MarketingPlan[#Headers],0))-INDEX(MarketingActual[],MATCH(INDEX(MarketingVariances[],ROW()-ROW(MarketingVariances[[#Headers],[ינו]]),1),INDEX(MarketingPlan[],,1),0),MATCH(MarketingVariances[[#Headers],[ינו]],MarketingActual[#Headers],0)) -> ₪ 100.00 | D25: =INDEX(MarketingPlan[],MATCH(INDEX(MarketingVariances[],ROW()-ROW(MarketingVariances[[#Headers],[פבר]]),1),INDEX(MarketingPlan[],,1),0),MATCH(MarketingVariances[[#Headers],[פבר]],MarketingPlan[#Headers],0))-INDEX(MarketingActual[],MATCH(INDEX(MarketingVariances[],ROW()-ROW(MarketingVariances[[#Headers],[פבר]]),1),INDEX(MarketingPlan[],,1),0),MATCH(MarketingVariances[[#Headers],[פבר]],MarketingActual[#Headers],0)) -> ₪ -300.00 | E25: =INDEX(MarketingPlan[],MATCH(INDEX(MarketingVariances[],ROW()-ROW(MarketingVariances[[#Headers],[מרץ]]),1),INDEX(MarketingPlan[],,1),0),MATCH(MarketingVariances[[#Headers],[מרץ]],MarketingPlan[#Headers],0))-INDEX(MarketingActual[],MATCH(INDEX(MarketingVariances[],ROW()-ROW(MarketingVariances[[#Headers],[מרץ]]),1),INDEX(MarketingPlan[],,1),0),MATCH(MarketingVariances[[#Headers],[מרץ]],MarketingActual[#Headers],0)) -> ₪ 100.00 | F25: =INDEX(MarketingPlan[],MATCH(INDEX(MarketingVariances[],ROW()-ROW(MarketingVariances[[#Headers],[אפר]]),1),INDEX(MarketingPlan[],,1),0),MATCH(MarketingVariances[[#Headers],[אפר]],MarketingPlan[#Headers],0))-INDEX(MarketingActual[],MATCH(INDEX(MarketingVariances[],ROW()-ROW(MarketingVariances[[#Headers],[אפר]]),1),INDEX(MarketingPlan[],,1),0),MATCH(MarketingVariances[[#Headers],[אפר]],MarketingActual[#Headers],0)) -> ₪ 100.00 | G25: =INDEX(MarketingPlan[],MATCH(INDEX(MarketingVariances[],ROW()-ROW(MarketingVariances[[#Headers],[מאי]]),1),INDEX(MarketingPlan[],,1),0),MATCH(MarketingVariances[[#Headers],[מאי]],MarketingPlan[#Headers],0))-INDEX(MarketingActual[],MATCH(INDEX(MarketingVariances[],ROW()-ROW(MarketingVariances[[#Headers],[מאי]]),1),INDEX(MarketingPlan[],,1),0),MATCH(MarketingVariances[[#Headers],[מאי]],MarketingActual[#Headers],0)) -> ₪ -400.00 | H25: =INDEX(MarketingPlan[],MATCH(INDEX(MarketingVariances[],ROW()-ROW(MarketingVariances[[#Headers],[יונ]]),1),INDEX(MarketingPlan[],,1),0),MATCH(MarketingVariances[[#Headers],[יונ]],MarketingPlan[#Headers],0))-INDEX(MarketingActual[],MATCH(INDEX(MarketingVariances[],ROW()-ROW(MarketingVariances[[#Headers],[יונ]]),1),INDEX(MarketingPlan[],,1),0),MATCH(MarketingVariances[[#Headers],[יונ]],MarketingActual[#Headers],0)) -> ₪ 20.00 | I25: =INDEX(MarketingPlan[],MATCH(INDEX(MarketingVariances[],ROW()-ROW(MarketingVariances[[#Headers],[יול]]),1),INDEX(MarketingPlan[],,1),0),MATCH(MarketingVariances[[#Headers],[יול]],MarketingPlan[#Headers],0))-INDEX(MarketingActual[],MATCH(INDEX(MarketingVariances[],ROW()-ROW(MarketingVariances[[#Headers],[יול]]),1),INDEX(MarketingPlan[],,1),0),MATCH(MarketingVariances[[#Headers],[יול]],MarketingActual[#Headers],0)) -> ₪ 200.00 | J25: =INDEX(MarketingPlan[],MATCH(INDEX(MarketingVariances[],ROW()-ROW(MarketingVariances[[#Headers],[אוג]]),1),INDEX(MarketingPlan[],,1),0),MATCH(MarketingVariances[[#Headers],[אוג]],MarketingPlan[#Headers],0))-INDEX(MarketingActual[],MATCH(INDEX(MarketingVariances[],ROW()-ROW(MarketingVariances[[#Headers],[אוג]]),1),INDEX(MarketingPlan[],,1),0),MATCH(MarketingVariances[[#Headers],[אוג]],MarketingActual[#Headers],0)) -> ₪ 200.00 | K25: =INDEX(MarketingPlan[],MATCH(INDEX(MarketingVariances[],ROW()-ROW(MarketingVariances[[#Headers],[ספט]]),1),INDEX(MarketingPlan[],,1),0),MATCH(MarketingVariances[[#Headers],[ספט]],MarketingPlan[#Headers],0))-INDEX(MarketingActual[],MATCH(INDEX(MarketingVariances[],ROW()-ROW(MarketingVariances[[#Headers],[ספט]]),1),INDEX(MarketingPlan[],,1),0),MATCH(MarketingVariances[[#Headers],[ספט]],MarketingActual[#Headers],0)) -> ₪ 200.00 | L25: =INDEX(MarketingPlan[],MATCH(INDEX(MarketingVariances[],ROW()-ROW(MarketingVariances[[#Headers],[אוק]]),1),INDEX(MarketingPlan[],,1),0),MATCH(MarketingVariances[[#Headers],[אוק]],MarketingPlan[#Headers],0))-INDEX(MarketingActual[],MATCH(INDEX(MarketingVariances[],ROW()-ROW(MarketingVariances[[#Headers],[אוק]]),1),INDEX(MarketingPlan[],,1),0),MATCH(MarketingVariances[[#Headers],[אוק]],MarketingActual[#Headers],0)) -> ₪ 200.00 | M25: =INDEX(MarketingPlan[],MATCH(INDEX(MarketingVariances[],ROW()-ROW(MarketingVariances[[#Headers],[נוב]]),1),INDEX(MarketingPlan[],,1),0),MATCH(MarketingVariances[[#Headers],[נוב]],MarketingPlan[#Headers],0))-INDEX(MarketingActual[],MATCH(INDEX(MarketingVariances[],ROW()-ROW(MarketingVariances[[#Headers],[נוב]]),1),INDEX(MarketingPlan[],,1),0),MATCH(MarketingVariances[[#Headers],[נוב]],MarketingActual[#Headers],0)) -> ₪ 200.00 | N25: =INDEX(MarketingPlan[],MATCH(INDEX(MarketingVariances[],ROW()-ROW(MarketingVariances[[#Headers],[דצמ]]),1),INDEX(MarketingPlan[],,1),0),MATCH(MarketingVariances[[#Headers],[דצמ]],MarketingPlan[#Headers],0))-INDEX(MarketingActual[],MATCH(INDEX(MarketingVariances[],ROW()-ROW(MarketingVariances[[#Headers],[דצמ]]),1),INDEX(MarketingPlan[],,1),0),MATCH(MarketingVariances[[#Headers],[דצמ]],MarketingActual[#Headers],0)) -> ₪ 200.00 | O25: =SUM(MarketingVariances[[#This Row],[ינו]:[דצמ]]) -> ₪ 820.00
B26: אירועים שיווקיים | C26: =INDEX(MarketingPlan[],MATCH(INDEX(MarketingVariances[],ROW()-ROW(MarketingVariances[[#Headers],[ינו]]),1),INDEX(MarketingPlan[],,1),0),MATCH(MarketingVariances[[#Headers],[ינו]],MarketingPlan[#Headers],0))-INDEX(MarketingActual[],MATCH(INDEX(MarketingVariances[],ROW()-ROW(MarketingVariances[[#Headers],[ינו]]),1),INDEX(MarketingPlan[],,1),0),MATCH(MarketingVariances[[#Headers],[ינו]],MarketingActual[#Headers],0)) -> ₪ 200.00 | D26: =INDEX(MarketingPlan[],MATCH(INDEX(MarketingVariances[],ROW()-ROW(MarketingVariances[[#Headers],[פבר]]),1),INDEX(MarketingPlan[],,1),0),MATCH(MarketingVariances[[#Headers],[פבר]],MarketingPlan[#Headers],0))-INDEX(MarketingActual[],MATCH(INDEX(MarketingVariances[],ROW()-ROW(MarketingVariances[[#Headers],[פבר]]),1),INDEX(MarketingPlan[],,1),0),MATCH(MarketingVariances[[#Headers],[פבר]],MarketingActual[#Headers],0)) -> ₪ -200.00 | E26: =INDEX(MarketingPlan[],MATCH(INDEX(MarketingVariances[],ROW()-ROW(MarketingVariances[[#Headers],[מרץ]]),1),INDEX(MarketingPlan[],,1),0),MATCH(MarketingVariances[[#Headers],[מרץ]],MarketingPlan[#Headers],0))-INDEX(MarketingActual[],MATCH(INDEX(MarketingVariances[],ROW()-ROW(MarketingVariances[[#Headers],[מרץ]]),1),INDEX(MarketingPlan[],,1),0),MATCH(MarketingVariances[[#Headers],[מרץ]],MarketingActual[#Headers],0)) -> ₪ -200.00 | F26: =INDEX(MarketingPlan[],MATCH(INDEX(MarketingVariances[],ROW()-ROW(MarketingVariances[[#Headers],[אפר]]),1),INDEX(MarketingPlan[],,1),0),MATCH(MarketingVariances[[#Headers],[אפר]],MarketingPlan[#Headers],0))-INDEX(MarketingActual[],MATCH(INDEX(MarketingVariances[],ROW()-ROW(MarketingVariances[[#Headers],[אפר]]),1),INDEX(MarketingPlan[],,1),0),MATCH(MarketingVariances[[#Headers],[אפר]],MarketingActual[#Headers],0)) -> ₪ 300.00 | G26: =INDEX(MarketingPlan[],MATCH(INDEX(MarketingVariances[],ROW()-ROW(MarketingVariances[[#Headers],[מאי]]),1),INDEX(MarketingPlan[],,1),0),MATCH(MarketingVariances[[#Headers],[מאי]],MarketingPlan[#Headers],0))-INDEX(MarketingActual[],MATCH(INDEX(MarketingVariances[],ROW()-ROW(MarketingVariances[[#Headers],[מאי]]),1),INDEX(MarketingPlan[],,1),0),MATCH(MarketingVariances[[#Headers],[מאי]],MarketingActual[#Headers],0)) -> ₪ 500.00 | H26: =INDEX(MarketingPlan[],MATCH(INDEX(MarketingVariances[],ROW()-ROW(MarketingVariances[[#Headers],[יונ]]),1),INDEX(MarketingPlan[],,1),0),MATCH(MarketingVariances[[#Headers],[יונ]],MarketingPlan[#Headers],0))-INDEX(MarketingActual[],MATCH(INDEX(MarketingVariances[],ROW()-ROW(MarketingVariances[[#Headers],[יונ]]),1),INDEX(MarketingPlan[],,1),0),MATCH(MarketingVariances[[#Headers],[יונ]],MarketingActual[#Headers],0)) -> ₪ -300.00 | I26: =INDEX(MarketingPlan[],MATCH(INDEX(MarketingVariances[],ROW()-ROW(MarketingVariances[[#Headers],[יול]]),1),INDEX(MarketingPlan[],,1),0),MATCH(MarketingVariances[[#Headers],[יול]],MarketingPlan[#Headers],0))-INDEX(MarketingActual[],MATCH(INDEX(MarketingVariances[],ROW()-ROW(MarketingVariances[[#Headers],[יול]]),1),INDEX(MarketingPlan[],,1),0),MATCH(MarketingVariances[[#Headers],[יול]],MarketingActual[#Headers],0)) -> ₪ 2,000.00 | J26: =INDEX(MarketingPlan[],MATCH(INDEX(MarketingVariances[],ROW()-ROW(MarketingVariances[[#Headers],[אוג]]),1),INDEX(MarketingPlan[],,1),0),MATCH(MarketingVariances[[#Headers],[אוג]],MarketingPlan[#Headers],0))-INDEX(MarketingActual[],MATCH(INDEX(MarketingVariances[],ROW()-ROW(MarketingVariances[[#Headers],[אוג]]),1),INDEX(MarketingPlan[],,1),0),MATCH(MarketingVariances[[#Headers],[אוג]],MarketingActual[#Headers],0)) -> ₪ 5,000.00 | K26: =INDEX(MarketingPlan[],MATCH(INDEX(MarketingVariances[],ROW()-ROW(MarketingVariances[[#Headers],[ספט]]),1),INDEX(MarketingPlan[],,1),0),MATCH(MarketingVariances[[#Headers],[ספט]],MarketingPlan[#Headers],0))-INDEX(MarketingActual[],MATCH(INDEX(MarketingVariances[],ROW()-ROW(MarketingVariances[[#Headers],[ספט]]),1),INDEX(MarketingPlan[],,1),0),MATCH(MarketingVariances[[#Headers],[ספט]],MarketingActual[#Headers],0)) -> ₪ 2,000.00 | L26: =INDEX(MarketingPlan[],MATCH(INDEX(MarketingVariances[],ROW()-ROW(MarketingVariances[[#Headers],[אוק]]),1),INDEX(MarketingPlan[],,1),0),MATCH(MarketingVariances[[#Headers],[אוק]],MarketingPlan[#Headers],0))-INDEX(MarketingActual[],MATCH(INDEX(MarketingVariances[],ROW()-ROW(MarketingVariances[[#Headers],[אוק]]),1),INDEX(MarketingPlan[],,1),0),MATCH(MarketingVariances[[#Headers],[אוק]],MarketingActual[#Headers],0)) -> ₪ 2,000.00 | M26: =INDEX(MarketingPlan[],MATCH(INDEX(MarketingVariances[],ROW()-ROW(MarketingVariances[[#Headers],[נוב]]),1),INDEX(MarketingPlan[],,1),0),MATCH(MarketingVariances[[#Headers],[נוב]],MarketingPlan[#Headers],0))-INDEX(MarketingActual[],MATCH(INDEX(MarketingVariances[],ROW()-ROW(MarketingVariances[[#Headers],[נוב]]),1),INDEX(MarketingPlan[],,1),0),MATCH(MarketingVariances[[#Headers],[נוב]],MarketingActual[#Headers],0)) -> ₪ 2,000.00 | N26: =INDEX(MarketingPlan[],MATCH(INDEX(MarketingVariances[],ROW()-ROW(MarketingVariances[[#Headers],[דצמ]]),1),INDEX(MarketingPlan[],,1),0),MATCH(MarketingVariances[[#Headers],[דצמ]],MarketingPlan[#Headers],0))-INDEX(MarketingActual[],MATCH(INDEX(MarketingVariances[],ROW()-ROW(MarketingVariances[[#Headers],[דצמ]]),1),INDEX(MarketingPlan[],,1),0),MATCH(MarketingVariances[[#Headers],[דצמ]],MarketingActual[#Headers],0)) -> ₪ 5,000.00 | O26: =SUM(MarketingVariances[[#This Row],[ינו]:[דצמ]]) -> ₪ 18,300.00
B27: הוצאות שונות | C27: =INDEX(MarketingPlan[],MATCH(INDEX(MarketingVariances[],ROW()-ROW(MarketingVariances[[#Headers],[ינו]]),1),INDEX(MarketingPlan[],,1),0),MATCH(MarketingVariances[[#Headers],[ינו]],MarketingPlan[#Headers],0))-INDEX(MarketingActual[],MATCH(INDEX(MarketingVariances[],ROW()-ROW(MarketingVariances[[#Headers],[ינו]]),1),INDEX(MarketingPlan[],,1),0),MATCH(MarketingVariances[[#Headers],[ינו]],MarketingActual[#Headers],0)) -> ₪ 55.00 | D27: =INDEX(MarketingPlan[],MATCH(INDEX(MarketingVariances[],ROW()-ROW(MarketingVariances[[#Headers],[פבר]]),1),INDEX(MarketingPlan[],,1),0),MATCH(MarketingVariances[[#Headers],[פבר]],MarketingPlan[#Headers],0))-INDEX(MarketingActual[],MATCH(INDEX(MarketingVariances[],ROW()-ROW(MarketingVariances[[#Headers],[פבר]]),1),INDEX(MarketingPlan[],,1),0),MATCH(MarketingVariances[[#Headers],[פבר]],MarketingActual[#Headers],0)) -> ₪ 44.00 | E27: =INDEX(MarketingPlan[],MATCH(INDEX(MarketingVariances[],ROW()-ROW(MarketingVariances[[#Headers],[מרץ]]),1),INDEX(MarketingPlan[],,1),0),MATCH(MarketingVariances[[#Headers],[מרץ]],MarketingPlan[#Headers],0))-INDEX(MarketingActual[],MATCH(INDEX(MarketingVariances[],ROW()-ROW(MarketingVariances[[#Headers],[מרץ]]),1),INDEX(MarketingPlan[],,1),0),MATCH(MarketingVariances[[#Headers],[מרץ]],MarketingActual[#Headers],0)) -> ₪ 77.00 | F27: =INDEX(MarketingPlan[],MATCH(INDEX(MarketingVariances[],ROW()-ROW(MarketingVariances[[#Headers],[אפר]]),1),INDEX(MarketingPlan[],,1),0),MATCH(MarketingVariances[[#Headers],[אפר]],MarketingPlan[#Headers],0))-INDEX(MarketingActual[],MATCH(INDEX(MarketingVariances[],ROW()-ROW(MarketingVariances[[#Headers],[אפר]]),1),INDEX(MarketingPlan[],,1),0),MATCH(MarketingVariances[[#Headers],[אפר]],MarketingActual[#Headers],0)) -> ₪ -23.00 | G27: =INDEX(MarketingPlan[],MATCH(INDEX(MarketingVariances[],ROW()-ROW(MarketingVariances[[#Headers],[מאי]]),1),INDEX(MarketingPlan[],,1),0),MATCH(MarketingVariances[[#Headers],[מאי]],MarketingPlan[#Headers],0))-INDEX(MarketingActual[],MATCH(INDEX(MarketingVariances[],ROW()-ROW(MarketingVariances[[#Headers],[מאי]]),1),INDEX(MarketingPlan[],,1),0),MATCH(MarketingVariances[[#Headers],[מאי]],MarketingActual[#Headers],0)) -> ₪ 13.00 | H27: =INDEX(MarketingPlan[],MATCH(INDEX(MarketingVariances[],ROW()-ROW(MarketingVariances[[#Headers],[יונ]]),1),INDEX(MarketingPlan[],,1),0),MATCH(MarketingVariances[[#Headers],[יונ]],MarketingPlan[#Headers],0))-INDEX(MarketingActual[],MATCH(INDEX(MarketingVariances[],ROW()-ROW(MarketingVariances[[#Headers],[יונ]]),1),INDEX(MarketingPlan[],,1),0),MATCH(MarketingVariances[[#Headers],[יונ]],MarketingActual[#Headers],0)) -> ₪ -45.00 | I27: =INDEX(MarketingPlan[],MATCH(INDEX(MarketingVariances[],ROW()-ROW(MarketingVariances[[#Headers],[יול]]),1),INDEX(MarketingPlan[],,1),0),MATCH(MarketingVariances[[#Headers],[יול]],MarketingPlan[#Headers],0))-INDEX(MarketingActual[],MATCH(INDEX(MarketingVariances[],ROW()-ROW(MarketingVariances[[#Headers],[יול]]),1),INDEX(MarketingPlan[],,1),0),MATCH(MarketingVariances[[#Headers],[יול]],MarketingActual[#Headers],0)) -> ₪ 200.00 | J27: =INDEX(MarketingPlan[],MATCH(INDEX(MarketingVariances[],ROW()-ROW(MarketingVariances[[#Headers],[אוג]]),1),INDEX(MarketingPlan[],,1),0),MATCH(MarketingVariances[[#Headers],[אוג]],MarketingPlan[#Headers],0))-INDEX(MarketingActual[],MATCH(INDEX(MarketingVariances[],ROW()-ROW(MarketingVariances[[#Headers],[אוג]]),1),INDEX(MarketingPlan[],,1),0),MATCH(MarketingVariances[[#Headers],[אוג]],MarketingActual[#Headers],0)) -> ₪ 200.00 | K27: =INDEX(MarketingPlan[],MATCH(INDEX(MarketingVariances[],ROW()-ROW(MarketingVariances[[#Headers],[ספט]]),1),INDEX(MarketingPlan[],,1),0),MATCH(MarketingVariances[[#Headers],[ספט]],MarketingPlan[#Headers],0))-INDEX(MarketingActual[],MATCH(INDEX(MarketingVariances[],ROW()-ROW(MarketingVariances[[#Headers],[ספט]]),1),INDEX(MarketingPlan[],,1),0),MATCH(MarketingVariances[[#Headers],[ספט]],MarketingActual[#Headers],0)) -> ₪ 200.00 | L27: =INDEX(MarketingPlan[],MATCH(INDEX(MarketingVariances[],ROW()-ROW(MarketingVariances[[#Headers],[אוק]]),1),INDEX(MarketingPlan[],,1),0),MATCH(MarketingVariances[[#Headers],[אוק]],MarketingPlan[#Headers],0))-INDEX(MarketingActual[],MATCH(INDEX(MarketingVariances[],ROW()-ROW(MarketingVariances[[#Headers],[אוק]]),1),INDEX(MarketingPlan[],,1),0),MATCH(MarketingVariances[[#Headers],[אוק]],MarketingActual[#Headers],0)) -> ₪ 200.00 | M27: =INDEX(MarketingPlan[],MATCH(INDEX(MarketingVariances[],ROW()-ROW(MarketingVariances[[#Headers],[נוב]]),1),INDEX(MarketingPlan[],,1),0),MATCH(MarketingVariances[[#Headers],[נוב]],MarketingPlan[#Headers],0))-INDEX(MarketingActual[],MATCH(INDEX(MarketingVariances[],ROW()-ROW(MarketingVariances[[#Headers],[נוב]]),1),INDEX(MarketingPlan[],,1),0),MATCH(MarketingVariances[[#Headers],[נוב]],MarketingActual[#Headers],0)) -> ₪ 200.00 | N27: =INDEX(MarketingPlan[],MATCH(INDEX(MarketingVariances[],ROW()-ROW(MarketingVariances[[#Headers],[דצמ]]),1),INDEX(MarketingPlan[],,1),0),MATCH(MarketingVariances[[#Headers],[דצמ]],MarketingPlan[#Headers],0))-INDEX(MarketingActual[],MATCH(INDEX(MarketingVariances[],ROW()-ROW(MarketingVariances[[#Headers],[דצמ]]),1),INDEX(MarketingPlan[],,1),0),MATCH(MarketingVariances[[#Headers],[דצמ]],MarketingActual[#Headers],0)) -> ₪ 200.00 | O27: =SUM(MarketingVariances[[#This Row],[ינו]:[דצמ]]) -> ₪ 1,321.00
B28: סכום ביניים | C28: =SUBTOTAL(109,MarketingVariances[ינו]) -> ₪ 555.00 | D28: =SUBTOTAL(109,MarketingVariances[פבר]) -> ₪ -456.00 | E28: =SUBTOTAL(109,MarketingVariances[מרץ]) -> ₪ -23.00 | F28: =SUBTOTAL(109,MarketingVariances[אפר]) -> ₪ -123.00 | G28: =SUBTOTAL(109,MarketingVariances[מאי]) -> ₪ 113.00 | H28: =SUBTOTAL(109,MarketingVariances[יונ]) -> ₪ -825.00 | I28: =SUBTOTAL(109,MarketingVariances[יול]) -> ₪ 8,100.00 | J28: =SUBTOTAL(109,MarketingVariances[אוג]) -> ₪ 6,100.00 | K28: =SUBTOTAL(109,MarketingVariances[ספט]) -> ₪ 3,100.00 | L28: =SUBTOTAL(109,MarketingVariances[אוק]) -> ₪ 8,100.00 | M28: =SUBTOTAL(109,MarketingVariances[נוב]) -> ₪ 3,100.00 | N28: =SUBTOTAL(109,MarketingVariances[דצמ]) -> ₪ 6,900.00 | O28: =SUBTOTAL(109,MarketingVariances[שנה]) -> ₪ 34,641.00
B30: הדרכה/נסיעה | C30: ינו | D30: פבר | E30: מרץ | F30: אפר | G30: מאי | H30: יונ | I30: יול | J30: אוג | K30: ספט | L30: אוק | M30: נוב | N30: דצמ | O30: שנה
B31: קורסי הדרכה | C31: =INDEX(TrainingAndTravelPlan[],MATCH(INDEX(TrainingAndTravelVariances[],ROW()-ROW(TrainingAndTravelVariances[[#Headers],[ינו]]),1),INDEX(TrainingAndTravelPlan[],,1),0),MATCH(TrainingAndTravelVariances[[#Headers],[ינו]],TrainingAndTravelPlan[#Headers],0))-INDEX(TrainingAndTravelActual[],MATCH(INDEX(TrainingAndTravelVariances[],ROW()-ROW(TrainingAndTravelVariances[[#Headers],[ינו]]),1),INDEX(TrainingAndTravelPlan[],,1),0),MATCH(TrainingAndTravelVariances[[#Headers],[ינו]],TrainingAndTravelActual[#Headers],0)) -> ₪ 400.00 | D31: =INDEX(TrainingAndTravelPlan[],MATCH(INDEX(TrainingAndTravelVariances[],ROW()-ROW(TrainingAndTravelVariances[[#Headers],[פבר]]),1),INDEX(TrainingAndTravelPlan[],,1),0),MATCH(TrainingAndTravelVariances[[#Headers],[פבר]],TrainingAndTravelPlan[#Headers],0))-INDEX(TrainingAndTravelActual[],MATCH(INDEX(TrainingAndTravelVariances[],ROW()-ROW(TrainingAndTravelVariances[[#Headers],[פבר]]),1),INDEX(TrainingAndTravelPlan[],,1),0),MATCH(TrainingAndTravelVariances[[#Headers],[פבר]],TrainingAndTravelActual[#Headers],0)) -> ₪ -400.00 | E31: =INDEX(TrainingAndTravelPlan[],MATCH(INDEX(TrainingAndTravelVariances[],ROW()-ROW(TrainingAndTravelVariances[[#Headers],[מרץ]]),1),INDEX(TrainingAndTravelPlan[],,1),0),MATCH(TrainingAndTravelVariances[[#Headers],[מרץ]],TrainingAndTravelPlan[#Headers],0))-INDEX(TrainingAndTravelActual[],MATCH(INDEX(TrainingAndTravelVariances[],ROW()-ROW(TrainingAndTravelVariances[[#Headers],[מרץ]]),1),INDEX(TrainingAndTravelPlan[],,1),0),MATCH(TrainingAndTravelVariances[[#Headers],[מרץ]],TrainingAndTravelActual[#Headers],0)) -> ₪ 600.00 | F31: =INDEX(TrainingAndTravelPlan[],MATCH(INDEX(TrainingAndTravelVariances[],ROW()-ROW(TrainingAndTravelVariances[[#Headers],[אפר]]),1),INDEX(TrainingAndTravelPlan[],,1),0),MATCH(TrainingAndTravelVariances[[#Headers],[אפר]],TrainingAndTravelPlan[#Headers],0))-INDEX(TrainingAndTravelActual[],MATCH(INDEX(TrainingAndTravelVariances[],ROW()-ROW(TrainingAndTravelVariances[[#Headers],[אפר]]),1),INDEX(TrainingAndTravelPlan[],,1),0),MATCH(TrainingAndTravelVariances[[#Headers],[אפר]],TrainingAndTravelActual[#Headers],0)) -> ₪ 400.00 | G31: =INDEX(TrainingAndTravelPlan[],MATCH(INDEX(TrainingAndTravelVariances[],ROW()-ROW(TrainingAndTravelVariances[[#Headers],[מאי]]),1),INDEX(TrainingAndTravelPlan[],,1),0),MATCH(TrainingAndTravelVariances[[#Headers],[מאי]],TrainingAndTravelPlan[#Headers],0))-INDEX(TrainingAndTravelActual[],MATCH(INDEX(TrainingAndTravelVariances[],ROW()-ROW(TrainingAndTravelVariances[[#Headers],[מאי]]),1),INDEX(TrainingAndTravelPlan[],,1),0),MATCH(TrainingAndTravelVariances[[#Headers],[מאי]],TrainingAndTravelActual[#Headers],0)) -> ₪ 800.00 | H31: =INDEX(TrainingAndTravelPlan[],MATCH(INDEX(TrainingAndTravelVariances[],ROW()-ROW(TrainingAndTravelVariances[[#Headers],[יונ]]),1),INDEX(TrainingAndTravelPlan[],,1),0),MATCH(TrainingAndTravelVariances[[#Headers],[יונ]],TrainingAndTravelPlan[#Headers],0))-INDEX(TrainingAndTravelActual[],MATCH(INDEX(TrainingAndTravelVariances[],ROW()-ROW(TrainingAndTravelVariances[[#Headers],[יונ]]),1),INDEX(TrainingAndTravelPlan[],,1),0),MATCH(TrainingAndTravelVariances[[#Headers],[יונ]],TrainingAndTravelActual[#Headers],0)) -> ₪ -800.00 | I31: =INDEX(TrainingAndTravelPlan[],MATCH(INDEX(TrainingAndTravelVariances[],ROW()-ROW(TrainingAndTravelVariances[[#Headers],[יול]]),1),INDEX(TrainingAndTravelPlan[],,1),0),MATCH(TrainingAndTravelVariances[[#Headers],[יול]],TrainingAndTravelPlan[#Headers],0))-INDEX(TrainingAndTravelActual[],MATCH(INDEX(TrainingAndTravelVariances[],ROW()-ROW(TrainingAndTravelVariances[[#Headers],[יול]]),1),INDEX(TrainingAndTravelPlan[],,1),0),MATCH(TrainingAndTravelVariances[[#Headers],[יול]],TrainingAndTravelActual[#Headers],0)) -> ₪ 2,000.00 | J31: =INDEX(TrainingAndTravelPlan[],MATCH(INDEX(TrainingAndTravelVariances[],ROW()-ROW(TrainingAndTravelVariances[[#Headers],[אוג]]),1),INDEX(TrainingAndTravelPlan[],,1),0),MATCH(TrainingAndTravelVariances[[#Headers],[אוג]],TrainingAndTravelPlan[#Headers],0))-INDEX(TrainingAndTravelActual[],MATCH(INDEX(TrainingAndTravelVariances[],ROW()-ROW(TrainingAndTravelVariances[[#Headers],[אוג]]),1),INDEX(TrainingAndTravelPlan[],,1),0),MATCH(TrainingAndTravelVariances[[#Headers],[אוג]],TrainingAndTravelActual[#Headers],0)) -> ₪ 2,000.00 | K31: =INDEX(TrainingAndTravelPlan[],MATCH(INDEX(TrainingAndTravelVariances[],ROW()-ROW(TrainingAndTravelVariances[[#Headers],[ספט]]),1),INDEX(TrainingAndTravelPlan[],,1),0),MATCH(TrainingAndTravelVariances[[#Headers],[ספט]],TrainingAndTravelPlan[#Headers],0))-INDEX(TrainingAndTravelActual[],MATCH(INDEX(TrainingAndTravelVariances[],ROW()-ROW(TrainingAndTravelVariances[[#Headers],[ספט]]),1),INDEX(TrainingAndTravelPlan[],,1),0),MATCH(TrainingAndTravelVariances[[#Headers],[ספט]],TrainingAndTravelActual[#Headers],0)) -> ₪ 2,000.00 | L31: =INDEX(TrainingAndTravelPlan[],MATCH(INDEX(TrainingAndTravelVariances[],ROW()-ROW(TrainingAndTravelVariances[[#Headers],[אוק]]),1),INDEX(TrainingAndTravelPlan[],,1),0),MATCH(TrainingAndTravelVariances[[#Headers],[אוק]],TrainingAndTravelPlan[#Headers],0))-INDEX(TrainingAndTravelActual[],MATCH(INDEX(TrainingAndTravelVariances[],ROW()-ROW(TrainingAndTravelVariances[[#Headers],[אוק]]),1),INDEX(TrainingAndTravelPlan[],,1),0),MATCH(TrainingAndTravelVariances[[#Headers],[אוק]],TrainingAndTravelActual[#Headers],0)) -> ₪ 2,000.00 | M31: =INDEX(TrainingAndTravelPlan[],MATCH(INDEX(TrainingAndTravelVariances[],ROW()-ROW(TrainingAndTravelVariances[[#Headers],[נוב]]),1),INDEX(TrainingAndTravelPlan[],,1),0),MATCH(TrainingAndTravelVariances[[#Headers],[נוב]],TrainingAndTravelPlan[#Headers],0))-INDEX(TrainingAndTravelActual[],MATCH(INDEX(TrainingAndTravelVariances[],ROW()-ROW(TrainingAndTravelVariances[[#Headers],[נוב]]),1),INDEX(TrainingAndTravelPlan[],,1),0),MATCH(TrainingAndTravelVariances[[#Headers],[נוב]],TrainingAndTravelActual[#Headers],0)) -> ₪ 2,000.00 | N31: =INDEX(TrainingAndTravelPlan[],MATCH(INDEX(TrainingAndTravelVariances[],ROW()-ROW(TrainingAndTravelVariances[[#Headers],[דצמ]]),1),INDEX(TrainingAndTravelPlan[],,1),0),MATCH(TrainingAndTravelVariances[[#Headers],[דצמ]],TrainingAndTravelPlan[#Headers],0))-INDEX(TrainingAndTravelActual[],MATCH(INDEX(TrainingAndTravelVariances[],ROW()-ROW(TrainingAndTravelVariances[[#Headers],[דצמ]]),1),INDEX(TrainingAndTravelPlan[],,1),0),MATCH(TrainingAndTravelVariances[[#Headers],[דצמ]],TrainingAndTravelActual[#Headers],0)) -> ₪ 2,000.00 | O31: =SUM(TrainingAndTravelVariances[[#This Row],[ינו]:[דצמ]]) -> ₪ 13,000.00
B32: עלויות נסיעה הקשורות להדרכה | C32: =INDEX(TrainingAndTravelPlan[],MATCH(INDEX(TrainingAndTravelVariances[],ROW()-ROW(TrainingAndTravelVariances[[#Headers],[ינו]]),1),INDEX(TrainingAndTravelPlan[],,1),0),MATCH(TrainingAndTravelVariances[[#Headers],[ינו]],TrainingAndTravelPlan[#Headers],0))-INDEX(TrainingAndTravelActual[],MATCH(INDEX(TrainingAndTravelVariances[],ROW()-ROW(TrainingAndTravelVariances[[#Headers],[ינו]]),1),INDEX(TrainingAndTravelPlan[],,1),0),MATCH(TrainingAndTravelVariances[[#Headers],[ינו]],TrainingAndTravelActual[#Headers],0)) -> ₪ 800.00 | D32: =INDEX(TrainingAndTravelPlan[],MATCH(INDEX(TrainingAndTravelVariances[],ROW()-ROW(TrainingAndTravelVariances[[#Headers],[פבר]]),1),INDEX(TrainingAndTravelPlan[],,1),0),MATCH(TrainingAndTravelVariances[[#Headers],[פבר]],TrainingAndTravelPlan[#Headers],0))-INDEX(TrainingAndTravelActual[],MATCH(INDEX(TrainingAndTravelVariances[],ROW()-ROW(TrainingAndTravelVariances[[#Headers],[פבר]]),1),INDEX(TrainingAndTravelPlan[],,1),0),MATCH(TrainingAndTravelVariances[[#Headers],[פבר]],TrainingAndTravelActual[#Headers],0)) -> ₪ -200.00 | E32: =INDEX(TrainingAndTravelPlan[],MATCH(INDEX(TrainingAndTravelVariances[],ROW()-ROW(TrainingAndTravelVariances[[#Headers],[מרץ]]),1),INDEX(TrainingAndTravelPlan[],,1),0),MATCH(TrainingAndTravelVariances[[#Headers],[מרץ]],TrainingAndTravelPlan[#Headers],0))-INDEX(TrainingAndTravelActual[],MATCH(INDEX(TrainingAndTravelVariances[],ROW()-ROW(TrainingAndTravelVariances[[#Headers],[מרץ]]),1),INDEX(TrainingAndTravelPlan[],,1),0),MATCH(TrainingAndTravelVariances[[#Headers],[מרץ]],TrainingAndTravelActual[#Headers],0)) -> ₪ 600.00 | F32: =INDEX(TrainingAndTravelPlan[],MATCH(INDEX(TrainingAndTravelVariances[],ROW()-ROW(TrainingAndTravelVariances[[#Headers],[אפר]]),1),INDEX(TrainingAndTravelPlan[],,1),0),MATCH(TrainingAndTravelVariances[[#Headers],[אפר]],TrainingAndTravelPlan[#Headers],0))-INDEX(TrainingAndTravelActual[],MATCH(INDEX(TrainingAndTravelVariances[],ROW()-ROW(TrainingAndTravelVariances[[#Headers],[אפר]]),1),INDEX(TrainingAndTravelPlan[],,1),0),MATCH(TrainingAndTravelVariances[[#Headers],[אפר]],TrainingAndTravelActual[#Headers],0)) -> ₪ 800.00 | G32: =INDEX(TrainingAndTravelPlan[],MATCH(INDEX(TrainingAndTravelVariances[],ROW()-ROW(TrainingAndTravelVariances[[#Headers],[מאי]]),1),INDEX(TrainingAndTravelPlan[],,1),0),MATCH(TrainingAndTravelVariances[[#Headers],[מאי]],TrainingAndTravelPlan[#Headers],0))-INDEX(TrainingAndTravelActual[],MATCH(INDEX(TrainingAndTravelVariances[],ROW()-ROW(TrainingAndTravelVariances[[#Headers],[מאי]]),1),INDEX(TrainingAndTravelPlan[],,1),0),MATCH(TrainingAndTravelVariances[[#Headers],[מאי]],TrainingAndTravelActual[#Headers],0)) -> ₪ 1,200.00 | H32: =INDEX(TrainingAndTravelPlan[],MATCH(INDEX(TrainingAndTravelVariances[],ROW()-ROW(TrainingAndTravelVariances[[#Headers],[יונ]]),1),INDEX(TrainingAndTravelPlan[],,1),0),MATCH(TrainingAndTravelVariances[[#Headers],[יונ]],TrainingAndTravelPlan[#Headers],0))-INDEX(TrainingAndTravelActual[],MATCH(INDEX(TrainingAndTravelVariances[],ROW()-ROW(TrainingAndTravelVariances[[#Headers],[יונ]]),1),INDEX(TrainingAndTravelPlan[],,1),0),MATCH(TrainingAndTravelVariances[[#Headers],[יונ]],TrainingAndTravelActual[#Headers],0)) -> ₪ -1,500.00 | I32: =INDEX(TrainingAndTravelPlan[],MATCH(INDEX(TrainingAndTravelVariances[],ROW()-ROW(TrainingAndTravelVariances[[#Headers],[יול]]),1),INDEX(TrainingAndTravelPlan[],,1),0),MATCH(TrainingAndTravelVariances[[#Headers],[יול]],TrainingAndTravelPlan[#Headers],0))-INDEX(TrainingAndTravelActual[],MATCH(INDEX(TrainingAndTravelVariances[],ROW()-ROW(TrainingAndTravelVariances[[#Headers],[יול]]),1),INDEX(TrainingAndTravelPlan[],,1),0),MATCH(TrainingAndTravelVariances[[#Headers],[יול]],TrainingAndTravelActual[#Headers],0)) -> ₪ 2,000.00 | J32: =INDEX(TrainingAndTravelPlan[],MATCH(INDEX(TrainingAndTravelVariances[],ROW()-ROW(TrainingAndTravelVariances[[#Headers],[אוג]]),1),INDEX(TrainingAndTravelPlan[],,1),0),MATCH(TrainingAndTravelVariances[[#Headers],[אוג]],TrainingAndTravelPlan[#Headers],0))-INDEX(TrainingAndTravelActual[],MATCH(INDEX(TrainingAndTravelVariances[],ROW()-ROW(TrainingAndTravelVariances[[#Headers],[אוג]]),1),INDEX(TrainingAndTravelPlan[],,1),0),MATCH(TrainingAndTravelVariances[[#Headers],[אוג]],TrainingAndTravelActual[#Headers],0)) -> ₪ 2,000.00 | K32: =INDEX(TrainingAndTravelPlan[],MATCH(INDEX(TrainingAndTravelVariances[],ROW()-ROW(TrainingAndTravelVariances[[#Headers],[ספט]]),1),INDEX(TrainingAndTravelPlan[],,1),0),MATCH(TrainingAndTravelVariances[[#Headers],[ספט]],TrainingAndTravelPlan[#Headers],0))-INDEX(TrainingAndTravelActual[],MATCH(INDEX(TrainingAndTravelVariances[],ROW()-ROW(TrainingAndTravelVariances[[#Headers],[ספט]]),1),INDEX(TrainingAndTravelPlan[],,1),0),MATCH(TrainingAndTravelVariances[[#Headers],[ספט]],TrainingAndTravelActual[#Headers],0)) -> ₪ 2,000.00 | L32: =INDEX(TrainingAndTravelPlan[],MATCH(INDEX(TrainingAndTravelVariances[],ROW()-ROW(TrainingAndTravelVariances[[#Headers],[אוק]]),1),INDEX(TrainingAndTravelPlan[],,1),0),MATCH(TrainingAndTravelVariances[[#Headers],[אוק]],TrainingAndTravelPlan[#Headers],0))-INDEX(TrainingAndTravelActual[],MATCH(INDEX(TrainingAndTravelVariances[],ROW()-ROW(TrainingAndTravelVariances[[#Headers],[אוק]]),1),INDEX(TrainingAndTravelPlan[],,1),0),MATCH(TrainingAndTravelVariances[[#Headers],[אוק]],TrainingAndTravelActual[#Headers],0)) -> ₪ 2,000.00 | M32: =INDEX(TrainingAndTravelPlan[],MATCH(INDEX(TrainingAndTravelVariances[],ROW()-ROW(TrainingAndTravelVariances[[#Headers],[נוב]]),1),INDEX(TrainingAndTravelPlan[],,1),0),MATCH(TrainingAndTravelVariances[[#Headers],[נוב]],TrainingAndTravelPlan[#Headers],0))-INDEX(TrainingAndTravelActual[],MATCH(INDEX(TrainingAndTravelVariances[],ROW()-ROW(TrainingAndTravelVariances[[#Headers],[נוב]]),1),INDEX(TrainingAndTravelPlan[],,1),0),MATCH(TrainingAndTravelVariances[[#Headers],[נוב]],TrainingAndTravelActual[#Headers],0)) -> ₪ 2,000.00 | N32: =INDEX(TrainingAndTravelPlan[],MATCH(INDEX(TrainingAndTravelVariances[],ROW()-ROW(TrainingAndTravelVariances[[#Headers],[דצמ]]),1),INDEX(TrainingAndTravelPlan[],,1),0),MATCH(TrainingAndTravelVariances[[#Headers],[דצמ]],TrainingAndTravelPlan[#Headers],0))-INDEX(TrainingAndTravelActual[],MATCH(INDEX(TrainingAndTravelVariances[],ROW()-ROW(TrainingAndTravelVariances[[#Headers],[דצמ]]),1),INDEX(TrainingAndTravelPlan[],,1),0),MATCH(TrainingAndTravelVariances[[#Headers],[דצמ]],TrainingAndTravelActual[#Headers],0)) -> ₪ 2,000.00 | O32: =SUM(TrainingAndTravelVariances[[#This Row],[ינו]:[דצמ]]) -> ₪ 13,700.00
B33: סכום ביניים | C33: =SUBTOTAL(109,TrainingAndTravelVariances[ינו]) -> ₪ 1,200.00 | D33: =SUBTOTAL(109,TrainingAndTravelVariances[פבר]) -> ₪ -600.00 | E33: =SUBTOTAL(109,TrainingAndTravelVariances[מרץ]) -> ₪ 1,200.00 | F33: =SUBTOTAL(109,TrainingAndTravelVariances[אפר]) -> ₪ 1,200.00 | G33: =SUBTOTAL(109,TrainingAndTravelVariances[מאי]) -> ₪ 2,000.00 | H33: =SUBTOTAL(109,TrainingAndTravelVariances[יונ]) -> ₪ -2,300.00 | I33: =SUBTOTAL(109,TrainingAndTravelVariances[יול]) -> ₪ 4,000.00 | J33: =SUBTOTAL(109,TrainingAndTravelVariances[אוג]) -> ₪ 4,000.00 | K33: =SUBTOTAL(109,TrainingAndTravelVariances[ספט]) -> ₪ 4,000.00 | L33: =SUBTOTAL(109,TrainingAndTravelVariances[אוק]) -> ₪ 4,000.00 | M33: =SUBTOTAL(109,TrainingAndTravelVariances[נוב]) -> ₪ 4,000.00 | N33: =SUBTOTAL(109,TrainingAndTravelVariances[דצמ]) -> ₪ 4,000.00 | O33: =SUBTOTAL(109,TrainingAndTravelVariances[שנה]) -> ₪ 26,700.00
B35: סכומים כוללים | C35: ינו | D35: פבר | E35: מרץ | F35: אפר | G35: מאי | H35: יונ | I35: יול | J35: אוג | K35: ספט | L35: אוק | M35: נוב | N35: דצמ | O35: שנה
B36: הוצאות חודשיות בפועל | C36: =TrainingAndTravelVariances[[#Totals],[ינו]]+MarketingVariances[[#Totals],[ינו]]+OfficeVariances[[#Totals],[ינו]]+EmployeeVariances[[#Totals],[ינו]] -> ₪ 1,738.00 | D36: =TrainingAndTravelVariances[[#Totals],[פבר]]+MarketingVariances[[#Totals],[פבר]]+OfficeVariances[[#Totals],[פבר]]+EmployeeVariances[[#Totals],[פבר]] -> ₪ -984.00 | E36: =TrainingAndTravelVariances[[#Totals],[מרץ]]+MarketingVariances[[#Totals],[מרץ]]+OfficeVariances[[#Totals],[מרץ]]+EmployeeVariances[[#Totals],[מרץ]] -> ₪ 1,255.00 | F36: =TrainingAndTravelVariances[[#Totals],[אפר]]+MarketingVariances[[#Totals],[אפר]]+OfficeVariances[[#Totals],[אפר]]+EmployeeVariances[[#Totals],[אפר]] -> ₪ 301.00 | G36: =TrainingAndTravelVariances[[#Totals],[מאי]]+MarketingVariances[[#Totals],[מאי]]+OfficeVariances[[#Totals],[מאי]]+EmployeeVariances[[#Totals],[מאי]] -> ₪ 1,440.00 | H36: =TrainingAndTravelVariances[[#Totals],[יונ]]+MarketingVariances[[#Totals],[יונ]]+OfficeVariances[[#Totals],[יונ]]+EmployeeVariances[[#Totals],[יונ]] -> ₪ -3,744.00 | I36: =TrainingAndTravelVariances[[#Totals],[יול]]+MarketingVariances[[#Totals],[יול]]+OfficeVariances[[#Totals],[יול]]+EmployeeVariances[[#Totals],[יול]] -> ₪ 134,695.00 | J36: =TrainingAndTravelVariances[[#Totals],[אוג]]+MarketingVariances[[#Totals],[אוג]]+OfficeVariances[[#Totals],[אוג]]+EmployeeVariances[[#Totals],[אוג]] -> ₪ 138,918.00 | K36: =TrainingAndTravelVariances[[#Totals],[ספט]]+MarketingVariances[[#Totals],[ספט]]+OfficeVariances[[#Totals],[ספט]]+EmployeeVariances[[#Totals],[ספט]] -> ₪ 135,918.00 | L36: =TrainingAndTravelVariances[[#Totals],[אוק]]+MarketingVariances[[#Totals],[אוק]]+OfficeVariances[[#Totals],[אוק]]+EmployeeVariances[[#Totals],[אוק]] -> ₪ 140,918.00 | M36: =TrainingAndTravelVariances[[#Totals],[נוב]]+MarketingVariances[[#Totals],[נוב]]+OfficeVariances[[#Totals],[נוב]]+EmployeeVariances[[#Totals],[נוב]] -> ₪ 136,218.00 | N36: =TrainingAndTravelVariances[[#Totals],[דצמ]]+MarketingVariances[[#Totals],[דצמ]]+OfficeVariances[[#Totals],[דצמ]]+EmployeeVariances[[#Totals],[דצמ]] -> ₪ 140,018.00 | O36: =TrainingAndTravelVariances[[#Totals],[שנה]]+MarketingVariances[[#Totals],[שנה]]+OfficeVariances[[#Totals],[שנה]]+EmployeeVariances[[#Totals],[שנה]] -> ₪ 826,691.00
B37: הוצאות כוללות בפועל | C37: =SUM($C$36:C36) -> ₪ 1,738.00 | D37: =SUM($C$36:D36) -> ₪ 754.00 | E37: =SUM($C$36:E36) -> ₪ 2,009.00 | F37: =SUM($C$36:F36) -> ₪ 2,310.00 | G37: =SUM($C$36:G36) -> ₪ 3,750.00 | H37: =SUM($C$36:H36) -> ₪ 6.00 | I37: =SUM($C$36:I36) -> ₪ 134,701.00 | J37: =SUM($C$36:J36) -> ₪ 273,619.00 | K37: =SUM($C$36:K36) -> ₪ 409,537.00 | L37: =SUM($C$36:L36) -> ₪ 550,455.00 | M37: =SUM($C$36:M36) -> ₪ 686,673.00 | N37: =SUM($C$36:N36) -> ₪ 826,691.00

Sheet ניתוח הוצאות
B2: ='הוצאות מתוכננות'!B2:D3 -> שם החברה
E3: =worksheet_title -> פירוט ההוצאות המשוערות
B5: קטגוריית הוצאות | C5: הוצאות מתוכננות | D5: הוצאות בפועל | E5: שונות הוצאות | F5: אחוז שונות
B6: עלויות עובדים | C6: =EmployeePlan[[#Totals],[שנה]] -> ₪ 1,355,090.00 | D6: =EmployeeActual[[#Totals],[שנה]] -> ₪ 659,130.00 | E6: =C6-D6 -> ₪ 695,960.00 | F6: =E6/C6 -> 51%
B7: ='הוצאות מתוכננות'!B10 -> עלויות משרדיות | C7: =OfficePlan[[#Totals],[שנה]] -> ₪ 138,740.00 | D7: =OfficeActual[[#Totals],[שנה]] -> ₪ 69,350.00 | E7: =C7-D7 -> ₪ 69,390.00 | F7: =E7/C7 -> 50%
B8: ='הוצאות מתוכננות'!B21 -> עלויות שיווק | C8: =MarketingPlan[[#Totals],[שנה]] -> ₪ 67,800.00 | D8: =MarketingActual[[#Totals],[שנה]] -> ₪ 33,159.00 | E8: =C8-D8 -> ₪ 34,641.00 | F8: =E8/C8 -> 51%
B9: ='הוצאות מתוכננות'!B30 -> הדרכה/נסיעה | C9: =TrainingAndTravelPlan[[#Totals],[שנה]] -> ₪ 48,000.00 | D9: =TrainingAndTravelActual[[#Totals],[שנה]] -> ₪ 21,300.00 | E9: =C9-D9 -> ₪ 26,700.00 | F9: =E9/C9 -> 56%
B10: ='הוצאות מתוכננות'!B35 -> סכומים כוללים | C10: ='הוצאות מתוכננות'!O36 -> ₪ 1,609,630.00 | D10: ='הוצאות בפועל'!O36 -> ₪ 782,939.00 | E10: =C10-D10 -> ₪ 826,691.00 | F10: =E10/C10 -> 51%
